Payment Date,Invoice Reference,Revised Net,Irrecoverable VAT,Vendor,Expense Area Description,Expense Type,Expense Type Description,Revenue / Capital,
01/04/2019,RACR293399,-1295.18,0,Lex Autolease,FLEET MAINTENANCE,34001,Vehicle Leasing,Revenue,
01/04/2019,2237371,"1,559.18",0,Bayford Oil,HUDDERSFIELD,25002,Energy-Fuel Oil,Revenue,
01/04/2019,EXI1265240,"1,143.78",0,Lex Autolease,Various,34001,Vehicle Leasing,Revenue,
01/04/2019,42591,480.00,0,Ark Display Graphics Ltd,PUBLIC INFORMATION,40221,Publty/Promtn/Media,Revenue,
01/04/2019,42591,"2,925.00",0,Ark Display Graphics Ltd,Corporate Management and Support,59163,Furniture & Fittings,Capital,
01/04/2019,LGWBMLLZ,"1,834.64",0,Npower Ltd,BRADFORD,25000,Energy-Electric,Revenue,
01/04/2019,LGWBMLLY,"4,021.05",0,Npower Ltd,NEW CONTROL PROJECT,25000,Energy-Electric,Revenue,
01/04/2019,INV/4751,"1,079.62",0,Industrial Door Solutions Limited,Cleckheaton,21006,Appliance Bay Doors,Revenue,
01/04/2019,YFSI4030442,"3,000.00",0,Police And Crime Commissioner WY,Calderdale DFSO,45108,Fire Prevn Pblcty,Revenue,
01/04/2019,LGWBMLL4,676.40,0,Npower Ltd,ROTHWELL,25000,Energy-Electric,Revenue,
01/04/2019,LGWBMLLS,"8,152.97",0,Npower Ltd,PROPERTY,25000,Energy-Electric,Revenue,
01/04/2019,7402513338,"18,564.75",0,Dell Corporation,Corporate Management and Support,59166,Computer Costs,Capital,
01/04/2019,SI-118535,"1,374.00",0,Totalkare Heavy Duty Workshop Solut,FLEET MAINTENANCE,30005,Workshop Equipment,Revenue,
01/04/2019,0984,978.00,0,Wm Projects Ltd,Corporate Management and Support,59052,Cont-External,Capital,
01/04/2019,027317,"1,209.65",0,BCS Electrics Ltd,STANNINGLEY,21013,Electrical Reps (Fr),Revenue,
01/04/2019,23715,"2,000.00",0,Thornley & Lumb Partnership Ltd,PROPERTY,20001,Water Management Legionella,Revenue,
01/04/2019,2507770,"57,336.12",0,Home Office,OPERATIONS,43026,Radio Licensing,Revenue,
01/04/2019,027439,"1,446.88",0,BCS Electrics Ltd,Dewsbury New,20000,Ann Contract/Service,Revenue,
01/04/2019,2508582,"57,336.12",0,Home Office,OPERATIONS,43026,Radio Licensing,Revenue,
01/04/2019,027440,809.85,0,BCS Electrics Ltd,Shipley New,20000,Ann Contract/Service,Revenue,
01/04/2019,SI-007193,"1,875.44",0,Origin Fitness,Corporate Management and Support,59052,Cont-External,Capital,
01/04/2019,953,"1,250.00",0,SJ Facilities,OTLEY,21014,General Rep & Maint,Revenue,
01/04/2019,MJA01337,"1,925.95",0,Mja Consultants,Corporate Management and Support,59052,Cont-External,Capital,
01/04/2019,027443,"1,968.42",0,BCS Electrics Ltd,Corporate Management and Support,59052,Cont-External,Capital,
01/04/2019,9093,"4,558.00",0,Wharfedale Construction Co Ltd,Corporate Management and Support,59052,Cont-External,Capital,
01/04/2019,027346,"1,044.26",0,BCS Electrics Ltd,Various,20000,Ann Contract/Service,Revenue,
01/04/2019,027343,"2,867.30",0,BCS Electrics Ltd,Various,20000,Ann Contract/Service,Revenue,
01/04/2019,027344,"2,296.48",0,BCS Electrics Ltd,Various,20000,Ann Contract/Service,Revenue,
01/04/2019,SMS1819-1539,"10,000.00",0,SOTER Management Systems Ltd,Corporate Management and Support,59061,Inst Srv-Commctn,Capital,
01/04/2019,0981,"35,566.05",0,Wm Projects Ltd,Corporate Management and Support,59058,Fee-External,Capital,
01/04/2019,12096,"1,155.00",0,West Yorkshire Windscreens Ltd,FLEET MANAGEMENT,30004,Rep-Ext Contractors,Revenue,
01/04/2019,SI197107,890.00,0,Dale Power Solutions Ltd,Various,20000,Ann Contract/Service,Revenue,
01/04/2019,ARCV265150,"1,130.00",0,Alliance Automotive UK CV Ltd T/a,FLEET MAINTENANCE,30001,Dir Cost-Spare Parts,Revenue,
01/04/2019,175631,"3,600.00",0,Northumberland County Council,TRAINING DELIVERY,19238,Ops Res Tng,Revenue,
01/04/2019,INV75258,"1,814.40",0,Skyguard Ltd,Fire Safety Prev,43024,Pagers,Revenue,
01/04/2019,INV-224815-V9P2,"4,928.50",0,The Institution of Fire Engineers (,TRAINING DELIVERY,19235,Emp Svc Tng,Revenue,
02/04/2019,03/19,"3,181.50",0,Dr N A L Smith (Medical Services) L,Health & Safety,42510,Client Med Fees/Exps,Revenue,
02/04/2019,173465,750.00,0,Bank House Chambers,FIRE LEGAL,42587,Legal Expenses,Revenue,
02/04/2019,173234,700.00,0,Bank House Chambers,FIRE LEGAL,42587,Legal Expenses,Revenue,
02/04/2019,LGWBNRYW,"1,354.68",0,Npower Ltd,GARFORTH,25000,Energy-Electric,Revenue,
02/04/2019,LGWBNRY3,"3,028.95",0,Npower Ltd,WAKEFIELD,25000,Energy-Electric,Revenue,
02/04/2019,LGWBNRY2,"1,048.35",0,Npower Ltd,TODMORDEN,25000,Energy-Electric,Revenue,
02/04/2019,LGWBNRY4,"1,846.12",0,Npower Ltd,South Kirkby,25000,Energy-Electric,Revenue,
02/04/2019,LGWBNRY5,"1,465.37",0,Npower Ltd,Ossett New,25000,Energy-Electric,Revenue,
02/04/2019,LGWBNRYX,"1,617.11",0,Npower Ltd,ILLINGWORTH,25000,Energy-Electric,Revenue,
02/04/2019,LGWBNRYY,"2,229.33",0,Npower Ltd,MIRFIELD,25000,Energy-Electric,Revenue,
02/04/2019,173465 B,"1,500.00",0,Bank House Chambers,FIRE LEGAL,42587,Legal Expenses,Revenue,
02/04/2019,OP/I838464,"15,884.54",0,Phoenix Software Ltd,Information Technlgy,43103,ICT Maintenance & Support,Revenue,
02/04/2019,LGWBMLL2,801.97,0,Npower Ltd,PONTEFRACT,25000,Energy-Electric,Revenue,
02/04/2019,LGWBMLL5,"1,064.84",0,Npower Ltd,LEEDS,25000,Energy-Electric,Revenue,
02/04/2019,LGWBMLLT,792.53,0,Npower Ltd,Rastrick,25000,Energy-Electric,Revenue,
02/04/2019,LGWBMLLV,778.46,0,Npower Ltd,Dewsbury New,25000,Energy-Electric,Revenue,
02/04/2019,LGWBMLLW,"1,044.09",0,Npower Ltd,Killingbeck,25000,Energy-Electric,Revenue,
02/04/2019,LGWBMLLX,656.48,0,Npower Ltd,Shipley New,25000,Energy-Electric,Revenue,
03/04/2019,52307729,660.00,0,Volvo Group Uk Ltd,Information Technlgy,43103,ICT Maintenance & Support,Revenue,
03/04/2019,52307925,660.00,0,Volvo Group Uk Ltd,Information Technlgy,43103,ICT Maintenance & Support,Revenue,
03/04/2019,655416640000001,619.21,0,Yorkshire Water,Corporate Management and Support,59164,Equipment,Capital,
03/04/2019,53802436,-660,0,Volvo Group Uk Ltd,Information Technlgy,43103,ICT Maintenance & Support,Revenue,
03/04/2019,53802243,-660,0,Volvo Group Uk Ltd,Information Technlgy,43103,ICT Maintenance & Support,Revenue,
03/04/2019,LC26032019,"1,100.00",0,Aagrah Leeds Ltd,Leeds District Prevention,45108,Fire Prevn Pblcty,Revenue,
03/04/2019,1680/1,975.00,0,2H Architecture Limited,Corporate Management and Support,59058,Fee-External,Capital,
03/04/2019,R13915,"3,060.00",0,Airmax Remote,Information Technlgy,43103,ICT Maintenance & Support,Revenue,
03/04/2019,27184,576.00,0,Crossley Evans Ltd,USAR,28506,Refuse Collect/Disp,Revenue,
03/04/2019,2105371188,"6,028.00",0,TeamViewer GmbH,Information Technlgy,43103,ICT Maintenance & Support,Revenue,
03/04/2019,0018,625.00,0,Primal Kitchen Ltd,RECRUITS,40502,Food,Revenue,
03/04/2019,4743,"1,151.00",0,Datanet,Information Technlgy,43022,ICT Spares & Repairs,Revenue,
03/04/2019,027355,704.58,0,BCS Electrics Ltd,TRAINING DELIVERY,21013,Electrical Reps (Fr),Revenue,
03/04/2019,67,"3,800.00",0,Michael Wood Management Consultancy,FINANCE SECTION,42511,Consultancy Fees,Revenue,
03/04/2019,2046557-01,993.86,0,Crossroads Truck & Bus Ltd,FLEET MANAGEMENT,30004,Rep-Ext Contractors,Revenue,
03/04/2019,22532,"1,534.50",0,National Compliance & Risk Qualific,TRAINING DELIVERY,19235,Emp Svc Tng,Revenue,
03/04/2019,1519005273,991.52,0,Hiab Limited,FLEET MANAGEMENT,30004,Rep-Ext Contractors,Revenue,
03/04/2019,9094,"5,717.24",0,Wharfedale Construction Co Ltd,Corporate Management and Support,59052,Cont-External,Capital,
03/04/2019,MC/194,790.00,0,Montgomery & Coupers Ltd,Corporate Management and Support,59061,Inst Srv-Commctn,Capital,
03/04/2019,B-21467,550.00,0,Acorn Analytical Services Ltd,Corporate Management and Support,59058,Fee-External,Capital,
03/04/2019,8045370,"5,150.40",0,Angus Fire Ltd,Corporate Management and Support,59164,Equipment,Capital,
03/04/2019,19000931,632.76,0,Godiva Ltd,FLEET MAINTENANCE,30001,Dir Cost-Spare Parts,Revenue,
03/04/2019,168407,"1,162.00",0,Respirex International,OPERATIONS EQUIPMENT,40005,Operational Equ Pch,Revenue,
03/04/2019,CE117097,"21,425.00",0,WCS Environmental Ltd,Various,20001,Water Management Legionella,Revenue,
03/04/2019,3052010519,"1,595.68",0,British Oxygen Co Ltd,Various,40005,Operational Equ Pch,Revenue,
03/04/2019,2238293,"8,681.01",0,Bayford Oil,TRAINING DELIVERY,30200,Vehicle Fuel,Revenue,
03/04/2019,2446,"1,635.00",0,Bahson Colour Print Ltd,PUBLIC INFORMATION,40221,Publty/Promtn/Media,Revenue,
03/04/2019,27234,921.60,0,Crossley Evans Ltd,TRAINING DELIVERY,28506,Refuse Collect/Disp,Revenue,
03/04/2019,52400399,660.00,0,Volvo Group Uk Ltd,Information Technlgy,43103,ICT Maintenance & Support,Revenue,
03/04/2019,52400370,660.00,0,Volvo Group Uk Ltd,Information Technlgy,43103,ICT Maintenance & Support,Revenue,
03/04/2019,52403067,660.00,0,Volvo Group Uk Ltd,Information Technlgy,43103,ICT Maintenance & Support,Revenue,
03/04/2019,52402449,660.00,0,Volvo Group Uk Ltd,Information Technlgy,43103,ICT Maintenance & Support,Revenue,
03/04/2019,52401338,660.00,0,Volvo Group Uk Ltd,Information Technlgy,43103,ICT Maintenance & Support,Revenue,
03/04/2019,27236,993.60,0,Crossley Evans Ltd,TRAINING DELIVERY,28506,Refuse Collect/Disp,Revenue,
03/04/2019,27237,"1,048.80",0,Crossley Evans Ltd,TRAINING DELIVERY,28506,Refuse Collect/Disp,Revenue,
03/04/2019,27235,"1,111.20",0,Crossley Evans Ltd,TRAINING DELIVERY,28506,Refuse Collect/Disp,Revenue,
03/04/2019,6291312057,700.00,0,Leeds City Council,EMPLOYMENT SERVICES,18100,Staff Advertising,Revenue,
03/04/2019,168283,"8,556.00",0,Respirex International,Corporate Management and Support,59164,Equipment,Capital,
03/04/2019,MJA01346,"2,411.02",0,Mja Consultants,Corporate Management and Support,59052,Cont-External,Capital,
03/04/2019,655563800000006,958.29,0,Yorkshire Water,Corporate Management and Support,59164,Equipment,Capital,
03/04/2019,655587130000006,619.21,0,Yorkshire Water,Corporate Management and Support,59164,Equipment,Capital,
03/04/2019,655587090000008,"1,020.29",0,Yorkshire Water,Corporate Management and Support,59164,Equipment,Capital,
03/04/2019,655587100000001,958.29,0,Yorkshire Water,Corporate Management and Support,59164,Equipment,Capital,
03/04/2019,65558711000000X,674.21,0,Yorkshire Water,Corporate Management and Support,59164,Equipment,Capital,
03/04/2019,655587120000008,681.21,0,Yorkshire Water,Corporate Management and Support,59164,Equipment,Capital,
03/04/2019,DEL 326732,"3,840.00",0,Otter Watersports,OPERATIONS EQUIPMENT,40005,Operational Equ Pch,Revenue,
03/04/2019,0940000048-076D,"2,949.83",0,Airwave Solutions Ltd,Information Technlgy,43026,Radio Licensing,Revenue,
04/04/2019,MC/181 CREDIT,-1172,0,Montgomery & Coupers Ltd,PROPERTY,20001,Water Management Legionella,Revenue,
04/04/2019,5306,"1,031.25",0,Banners and Mash Ltd,Leeds District Prevention,45108,Fire Prevn Pblcty,Revenue,
04/04/2019,90917513,"6,329.31",0,Vodafone (Mobiles),Information Technlgy,43017,Corporate Mobile Phone,Revenue,
04/04/2019,1315139,"3,700.00",0,Blackboard International B.V.,Central Staffing Tm,43022,ICT Spares & Repairs,Revenue,
04/04/2019,MC/181,"1,172.00",0,Montgomery & Coupers Ltd,PROPERTY,20001,Water Management Legionella,Revenue,
04/04/2019,2046350-01,"2,245.37",0,Crossroads Truck & Bus Ltd,FLEET MANAGEMENT,30004,Rep-Ext Contractors,Revenue,
04/04/2019,52400899,660.00,0,Volvo Group Uk Ltd,Information Technlgy,43103,ICT Maintenance & Support,Revenue,
04/04/2019,52405955,660.00,0,Volvo Group Uk Ltd,Information Technlgy,43103,ICT Maintenance & Support,Revenue,
04/04/2019,52401515,660.00,0,Volvo Group Uk Ltd,Information Technlgy,43103,ICT Maintenance & Support,Revenue,
04/04/2019,2275092,"4,580.55",0,Bayford Oil,FAIRWEATHER GREEN,30200,Vehicle Fuel,Revenue,
05/04/2019,2260013,"2,530.50",0,Bayford Oil,LEEDS,30200,Vehicle Fuel,Revenue,
05/04/2019,2263684,"3,053.70",0,Bayford Oil,Cleckheaton,30200,Vehicle Fuel,Revenue,
05/04/2019,A9980143432,"6,315.69",0,Ats Euromaster Ltd,FLEET MANAGEMENT,30000,Tyre Purchase,Revenue,
05/04/2019,R14163,"3,030.00",0,Airmax Remote,Information Technlgy,43103,ICT Maintenance & Support,Revenue,
05/04/2019,1832136007,617.90,0,Karcher (UK) Ltd,FLEET MAINTENANCE,30005,Workshop Equipment,Revenue,
05/04/2019,ARCV267446,501.78,0,Alliance Automotive UK CV Ltd T/a,FLEET MAINTENANCE,30001,Dir Cost-Spare Parts,Revenue,
05/04/2019,18652,700.00,0,Dr GEP Vincenti,Health & Safety,18301,Specialists Fees,Revenue,
05/04/2019,27185,811.20,0,Crossley Evans Ltd,PROPERTY,28506,Refuse Collect/Disp,Revenue,
05/04/2019,6294,502.00,0,Geckops Ltd t/a Gecko Property Solu,KEIGHLEY,21014,General Rep & Maint,Revenue,
05/04/2019,SIN018256,509.82,0,Dearnleys,Dewsbury New,21014,General Rep & Maint,Revenue,
05/04/2019,INV/19853,674.80,0,DFP Services Limited,NEW CONTROL PROJECT,21013,Electrical Reps (Fr),Revenue,
05/04/2019,12338,"1,105.00",0,West Yorkshire Windscreens Ltd,FLEET MANAGEMENT,30004,Rep-Ext Contractors,Revenue,
05/04/2019,2047070-01,"1,084.37",0,Crossroads Truck & Bus Ltd,FLEET MANAGEMENT,30004,Rep-Ext Contractors,Revenue,
05/04/2019,12339,750.00,0,West Yorkshire Windscreens Ltd,FLEET MANAGEMENT,30004,Rep-Ext Contractors,Revenue,
05/04/2019,1575,596.00,0,Higher Mapping Solutions,Information Technlgy,43103,ICT Maintenance & Support,Revenue,
05/04/2019,30602,"15,257.16",0,World Careers Network plc,Information Technlgy,43103,ICT Maintenance & Support,Revenue,
08/04/2019,13768,635.00,0,Ashwell Engineering Services,TRAINING DELIVERY,21012,Heating & Mechanical,Revenue,
08/04/2019,435759,"1,695.60",0,B B N Fastnet,Various,40005,Operational Equ Pch,Revenue,
08/04/2019,INV/4918,685.00,0,Industrial Door Solutions Limited,PONTEFRACT,21006,Appliance Bay Doors,Revenue,
08/04/2019,INV-0982,"4,284.03",0,Pulse Cashflow Finance,Various,28502,Contract Cleaning,Revenue,
08/04/2019,INV-0981,"5,301.19",0,Pulse Cashflow Finance,Various,28502,Contract Cleaning,Revenue,
08/04/2019,INV-0980,871.12,0,Pulse Cashflow Finance,PONTEFRACT,28502,Contract Cleaning,Revenue,
08/04/2019,INV-0983,"8,262.44",0,Pulse Cashflow Finance,Various,28502,Contract Cleaning,Revenue,
08/04/2019,INV-0367,871.12,0,Pulse Cashflow Finance,PONTEFRACT,28502,Contract Cleaning,Revenue,
08/04/2019,INV-0365,"4,284.03",0,Pulse Cashflow Finance,Various,28502,Contract Cleaning,Revenue,
08/04/2019,INV-0366,"5,301.19",0,Pulse Cashflow Finance,Various,28502,Contract Cleaning,Revenue,
08/04/2019,INV-0364,"8,262.44",0,Pulse Cashflow Finance,Various,28502,Contract Cleaning,Revenue,
08/04/2019,979482,"1,465.00",0,Gritit Ltd,Various,24000,Grounds Maintenance,Revenue,
08/04/2019,6294,"1,000.00",0,Harry G Rhodes & Sons Ltd,FLEET MANAGEMENT,30006,Ins Claims Excess,Revenue,
08/04/2019,0000012872,"12,104.14",0,South Yorks Fire & Rescue,EMERGENCY SERV COMMS PROG - REGIONAL,10301,Control Staff - Basic Pay,Revenue,
08/04/2019,MJA01340,"2,820.00",0,Mja Consultants,Various,20000,Ann Contract/Service,Revenue,
08/04/2019,MJA01341,"9,389.22",0,Mja Consultants,Various,20000,Ann Contract/Service,Revenue,
08/04/2019,980251,"1,465.00",0,Gritit Ltd,Various,24000,Grounds Maintenance,Revenue,
08/04/2019,980250,800.00,0,Gritit Ltd,PROPERTY,24000,Grounds Maintenance,Revenue,
08/04/2019,64511,626.50,0,"Richardson Bus Equip Dist Ltd,",CONTROL,40100,Furniture,Revenue,
08/04/2019,INV/15797,"2,880.00",0,DFP Services Limited,Various,20000,Ann Contract/Service,Revenue,
08/04/2019,12459,"1,330.00",0,West Yorkshire Windscreens Ltd,FLEET MANAGEMENT,30004,Rep-Ext Contractors,Revenue,
09/04/2019,19000945,"1,600.00",0,Godiva Ltd,TRAINING DELIVERY,19243,Tech Svcs Tng,Revenue,
09/04/2019,19000944,"1,600.00",0,Godiva Ltd,TRAINING DELIVERY,19243,Tech Svcs Tng,Revenue,
09/04/2019,669704,950.00,0,Access Uk Ltd,Corporate Management and Support,59166,Computer Costs,Capital,
09/04/2019,669853,"4,750.00",0,Access Uk Ltd,Corporate Management and Support,59166,Computer Costs,Capital,
09/04/2019,669708,950.00,0,Access Uk Ltd,Corporate Management and Support,59166,Computer Costs,Capital,
09/04/2019,SI-007027,"2,013.43",0,Origin Fitness,Corporate Management and Support,59052,Cont-External,Capital,
09/04/2019,SI879931,811.20,0,Burmatex Plc,Corporate Management and Support,59163,Furniture & Fittings,Capital,
09/04/2019,655604220000007,868.83,0,Yorkshire Water,Corporate Management and Support,59164,Equipment,Capital,
09/04/2019,655604210000009,958.29,0,Yorkshire Water,Corporate Management and Support,59164,Equipment,Capital,
09/04/2019,655604200000000,958.29,0,Yorkshire Water,Corporate Management and Support,59164,Equipment,Capital,
09/04/2019,655604190000007,619.21,0,Yorkshire Water,Corporate Management and Support,59164,Equipment,Capital,
09/04/2019,655604170000000,868.83,0,Yorkshire Water,Corporate Management and Support,59164,Equipment,Capital,
09/04/2019,655604160000002,958.29,0,Yorkshire Water,Corporate Management and Support,59164,Equipment,Capital,
09/04/2019,655604150000004,958.29,0,Yorkshire Water,Corporate Management and Support,59164,Equipment,Capital,
09/04/2019,655604140000006,"1,018.29",0,Yorkshire Water,Corporate Management and Support,59164,Equipment,Capital,
09/04/2019,655604110000001,"1,018.29",0,Yorkshire Water,Corporate Management and Support,59164,Equipment,Capital,
09/04/2019,655604130000008,958.29,0,Yorkshire Water,Corporate Management and Support,59164,Equipment,Capital,
09/04/2019,65560412000000X,958.29,0,Yorkshire Water,Corporate Management and Support,59164,Equipment,Capital,
09/04/2019,655604100000003,"1,427.11",0,Yorkshire Water,Corporate Management and Support,59164,Equipment,Capital,
09/04/2019,655595300000009,958.29,0,Yorkshire Water,Corporate Management and Support,59164,Equipment,Capital,
09/04/2019,655595280000007,958.29,0,Yorkshire Water,Corporate Management and Support,59164,Equipment,Capital,
09/04/2019,655595260000000,"1,427.11",0,Yorkshire Water,Corporate Management and Support,59164,Equipment,Capital,
09/04/2019,655595250000002,"1,427.11",0,Yorkshire Water,Corporate Management and Support,59164,Equipment,Capital,
09/04/2019,655595230000006,"1,427.11",0,Yorkshire Water,Corporate Management and Support,59164,Equipment,Capital,
09/04/2019,027528,"1,600.50",0,BCS Electrics Ltd,STANNINGLEY,20000,Ann Contract/Service,Revenue,
09/04/2019,2810026361,"1,281.98",0,Yorkshire Ambulance Serv Nhs,Comah,43500,Subsistence Allowncs,Revenue,
10/04/2019,7970063236,"1,239.14",0,Mitchell Powersystems,FLEET MAINTENANCE,30001,Dir Cost-Spare Parts,Revenue,
10/04/2019,C4766,"2,375.00",0,Clucas,Corporate Management and Support,59164,Equipment,Capital,
10/04/2019,C4765,"24,775.00",0,Clucas,Corporate Management and Support,59164,Equipment,Capital,
10/04/2019,655604230000005,619.21,0,Yorkshire Water,Corporate Management and Support,59164,Equipment,Capital,
11/04/2019,E2011009271,"3,956.07",0,Allstar Business Solutions Ltd,Various,30200,Vehicle Fuel,Revenue,
11/04/2019,ARCV268769,774.00,0,Alliance Automotive UK CV Ltd T/a,FLEET MAINTENANCE,30001,Dir Cost-Spare Parts,Revenue,
11/04/2019,1009486928,560.00,0,Hays Specialist Recruitment,FINANCE SECTION,15001,Admin - Basic Pay,Revenue,
11/04/2019,1009506914,560.00,0,Hays Specialist Recruitment,FINANCE SECTION,15001,Admin - Basic Pay,Revenue,
11/04/2019,IN47780,"17,831.25",0,BAM FM Limited,PROPERTY,20000,Ann Contract/Service,Revenue,
11/04/2019,IN47781,"17,831.25",0,BAM FM Limited,PROPERTY,20000,Ann Contract/Service,Revenue,
11/04/2019,IN47782,"17,831.25",0,BAM FM Limited,PROPERTY,20000,Ann Contract/Service,Revenue,
11/04/2019,8604757036,"1,045.15",0,Kirklees Council,PROPERTY,28506,Refuse Collect/Disp,Revenue,
11/04/2019,8604757065,"1,183.05",0,Kirklees Council,PROPERTY,28506,Refuse Collect/Disp,Revenue,
11/04/2019,027561,"1,446.88",0,BCS Electrics Ltd,South Kirkby,20000,Ann Contract/Service,Revenue,
12/04/2019,1146,726.00,0,Pisces Pumps Ltd,PROPERTY,20000,Ann Contract/Service,Revenue,
12/04/2019,2281040,"4,069.20",0,Bayford Oil,Shipley New,30200,Vehicle Fuel,Revenue,
12/04/2019,2275595,"2,542.23",0,Bayford Oil,Holmfirth,30200,Vehicle Fuel,Revenue,
12/04/2019,385565,"1,000.00",0,Mr Darren Finlay,FIRE LEGAL,42587,Legal Expenses,Revenue,
15/04/2019,655200830000005,"1,387.42",0,Yorkshire Water,Corporate Management and Support,59164,Equipment,Capital,
15/04/2019,655383220000000,892.66,0,Yorkshire Water,Corporate Management and Support,59164,Equipment,Capital,
15/04/2019,MLCR083489,-1774.32,-94.53,Lex Autolease,STRATEGIC DEVELOPMENT,34001,Vehicle Leasing,Revenue,
15/04/2019,MLCR083487,-2046.42,0,Lex Autolease,WATER OFFICE,34001,Vehicle Leasing,Revenue,
15/04/2019,MLCR083490,-1644,-87.58,Lex Autolease,FLEET MANAGEMENT,34001,Vehicle Leasing,Revenue,
15/04/2019,MLCR083493,-1178,0,Lex Autolease,FLEET MANAGEMENT,34001,Vehicle Leasing,Revenue,
15/04/2019,MLCR083488,-1077.72,0,Lex Autolease,Fire Safety Prot,34001,Vehicle Leasing,Revenue,
15/04/2019,MLCR083518,-2341.8,0,Lex Autolease,PROPERTY,34001,Vehicle Leasing,Revenue,
15/04/2019,MLCR083911,-1408.04,0,Lex Autolease,PROPERTY,34001,Vehicle Leasing,Revenue,
15/04/2019,MLCR084063,-2193.2,0,Lex Autolease,Calderdale Dist Com,34001,Vehicle Leasing,Revenue,
15/04/2019,MLCR083981,-1548.68,0,Lex Autolease,Fire Safety Prev,34001,Vehicle Leasing,Revenue,
15/04/2019,MLCR083980,-1438.08,0,Lex Autolease,Health & Safety,34001,Vehicle Leasing,Revenue,
15/04/2019,MLCR083979,-1160.56,0,Lex Autolease,FLEET MANAGEMENT,34001,Vehicle Leasing,Revenue,
15/04/2019,MLCR083317,-2178.18,0,Lex Autolease,FLEET MAINTENANCE,34001,Vehicle Leasing,Revenue,
15/04/2019,MSCR445042,-884,-63.84,Lex Autolease,PROPERTY,34001,Vehicle Leasing,Revenue,
15/04/2019,MLCR084349,-1195.84,0,Lex Autolease,FLEET MANAGEMENT,34001,Vehicle Leasing,Revenue,
15/04/2019,MLIN083869,695.46,50.74,Lex Autolease,OPERATIONS TEAM,34001,Vehicle Leasing,Revenue,
15/04/2019,IRIN649882,"6,078.47",535.22,Lex Autolease,Wakefield Dist Com,34001,Vehicle Leasing,Revenue,
15/04/2019,IRIN650091,"3,269.28",290.11,Lex Autolease,Wakefield Dist Com,34001,Vehicle Leasing,Revenue,
15/04/2019,MRI8402573,"3,214.20",274.54,Lex Autolease,Bfd Dist Com,34001,Vehicle Leasing,Revenue,
15/04/2019,MRI8446246,"14,912.16",0,Lex Autolease,Various,34001,Vehicle Leasing,Revenue,
15/04/2019,027348,766.00,0,BCS Electrics Ltd,Various,20000,Ann Contract/Service,Revenue,
15/04/2019,2217,930.00,0,Advanced Monitoring Limited,PROPERTY,20000,Ann Contract/Service,Revenue,
15/04/2019,2323,930.00,0,Advanced Monitoring Limited,PROPERTY,20000,Ann Contract/Service,Revenue,
15/04/2019,027136,592.50,0,BCS Electrics Ltd,KEIGHLEY,21013,Electrical Reps (Fr),Revenue,
15/04/2019,205256,"2,352.00",0,Kent Fire & Rescue Service,EMPLOYEE RESOURCING,44600,Subscriptions,Revenue,
15/04/2019,MC/193,900.00,0,Montgomery & Coupers Ltd,Killingbeck,42511,Consultancy Fees,Revenue,
15/04/2019,SI876557,"2,704.00",0,Burmatex Plc,Corporate Management and Support,59163,Furniture & Fittings,Capital,
16/04/2019,8071,-515,0,Respiratory Protective Assessment L,Corporate Management and Support,59164,Equipment,Capital,
16/04/2019,IN18223421,570.00,0,Calderdale Met Borough Council,EMPLOYMENT SERVICES,18100,Staff Advertising,Revenue,
16/04/2019,EXI1268085,718.03,65.32,Lex Autolease,Various,34001,Vehicle Leasing,Revenue,
16/04/2019,7440050,848.25,0,Chubb Fire Ltd,OPERATIONS EQUIPMENT,40005,Operational Equ Pch,Revenue,
16/04/2019,EXI1268279,988.68,0,Lex Autolease,DRIVING SCHOOL,34001,Vehicle Leasing,Revenue,
16/04/2019,19001020,942.70,0,Godiva Ltd,FLEET MAINTENANCE,30001,Dir Cost-Spare Parts,Revenue,
16/04/2019,1021,"6,495.00",0,White Rose Buildings Ltd,Corporate Management and Support,59052,Cont-External,Capital,
16/04/2019,23102,"1,289.07",0,Mitton Mechanical Services Ltd,Corporate Management and Support,59052,Cont-External,Capital,
16/04/2019,23100,"3,172.50",0,Mitton Mechanical Services Ltd,Corporate Management and Support,59052,Cont-External,Capital,
16/04/2019,23101,"3,183.64",0,Mitton Mechanical Services Ltd,Corporate Management and Support,59052,Cont-External,Capital,
16/04/2019,23099,"3,954.98",0,Mitton Mechanical Services Ltd,Corporate Management and Support,59052,Cont-External,Capital,
16/04/2019,23104,"4,913.70",0,Mitton Mechanical Services Ltd,Corporate Management and Support,59052,Cont-External,Capital,
16/04/2019,23041,"69,397.20",0,Mitton Mechanical Services Ltd,Corporate Management and Support,59052,Cont-External,Capital,
16/04/2019,0982,"2,370.00",0,Wm Projects Ltd,Corporate Management and Support,59052,Cont-External,Capital,
16/04/2019,7954,515.00,0,Respiratory Protective Assessment L,Corporate Management and Support,59164,Equipment,Capital,
16/04/2019,655476350000000,"1,427.11",0,Yorkshire Water,Corporate Management and Support,59164,Equipment,Capital,
18/04/2019,PAYL3 APP LEVY,"16,248.00",0,HMRC Cumbernauld,TRAINING DELIVERY,19202,Apprentice Tng,Revenue,
18/04/2019,655626030000004,"1,427.11",0,Yorkshire Water,Corporate Management and Support,59164,Equipment,Capital,
18/04/2019,674721,"1,121.45",0,Access Uk Ltd,Corporate Management and Support,59166,Computer Costs,Capital,
18/04/2019,MJA01350,629.50,0,Mja Consultants,Corporate Management and Support,59052,Cont-External,Capital,
18/04/2019,675749,950.00,0,Access Uk Ltd,Corporate Management and Support,59166,Computer Costs,Capital,
24/04/2019,KW64441/3,"1,450.00",0,Kingswood Learning & Leisure Group,YOUNG FIREFIGHTERS,45109,Youth Training Exps,Revenue,
24/04/2019,27243,705.60,0,Crossley Evans Ltd,TRAINING DELIVERY,28506,Refuse Collect/Disp,Revenue,
24/04/2019,27231,722.40,0,Crossley Evans Ltd,TRAINING DELIVERY,28506,Refuse Collect/Disp,Revenue,
24/04/2019,INV/4957,"1,118.00",0,Industrial Door Solutions Limited,Cleckheaton,21006,Appliance Bay Doors,Revenue,
24/04/2019,IRIN651210,"5,577.72",509.55,Lex Autolease,Leeds Dist Com,34001,Vehicle Leasing,Revenue,
24/04/2019,2019-16,720.00,0,Daniels Caf�,RECRUITS,40502,Food,Revenue,
24/04/2019,2348725,"2,676.46",0,Bayford Oil,HUDDERSFIELD,25002,Energy-Fuel Oil,Revenue,
24/04/2019,10525,"18,846.96",0,Datatecnix Ltd,Information Technlgy,43103,ICT Maintenance & Support,Revenue,
24/04/2019,27242,871.20,0,Crossley Evans Ltd,TRAINING DELIVERY,28506,Refuse Collect/Disp,Revenue,
24/04/2019,27238,861.60,0,Crossley Evans Ltd,TRAINING DELIVERY,28506,Refuse Collect/Disp,Revenue,
24/04/2019,27233,828.00,0,Crossley Evans Ltd,TRAINING DELIVERY,28506,Refuse Collect/Disp,Revenue,
24/04/2019,#9,868.00,0,D.V Optical (Openshaw Opticians),Health & Safety,18301,Specialists Fees,Revenue,
24/04/2019,6003881862,"2,500.00",0,Capita Business Services Ltd,CORPORATE DIVERSITY,42511,Consultancy Fees,Revenue,
24/04/2019,INV-0000002100,"1,383.20",0,Event Equipment Hire,RECRUITS,40100,Furniture,Revenue,
24/04/2019,268.18.19,"2,541.50",0,Opinion Research Services Ltd,CORPORATE SERVICES,43000,Investments,Revenue,
25/04/2019,UK-19-0000110,571.00,0,Jolly Safety Equipment Ltd,Various,41500,Clothing,Revenue,
25/04/2019,337754,502.00,0,Systems Assurance Ltd,Information Technlgy,43106,ICT Consumables,Revenue,
26/04/2019,19084,504.00,0,Working Fit Ltd,Health & Safety,18301,Specialists Fees,Revenue,
29/04/2019,9302742487,-855,0,Seton,Information Technlgy,42100,Stationery,Revenue,
29/04/2019,LGWBW5KN,847.14,0,Npower Ltd,PONTEFRACT,25000,Energy-Electric,Revenue,
29/04/2019,LGWBW5KG,844.14,0,Npower Ltd,Rastrick,25000,Energy-Electric,Revenue,
29/04/2019,LGWBW5KQ,721.04,0,Npower Ltd,ROTHWELL,25000,Energy-Electric,Revenue,
29/04/2019,27239,756.00,0,Crossley Evans Ltd,TRAINING DELIVERY,28506,Refuse Collect/Disp,Revenue,
29/04/2019,OP/I837650,"22,432.80",0,Phoenix Software Ltd,Information Technlgy,43103,ICT Maintenance & Support,Revenue,
29/04/2019,382375,750.00,0,Mr Darren Finlay,FIRE LEGAL,42587,Legal Expenses,Revenue,
29/04/2019,22622,"2,557.50",0,National Compliance & Risk Qualific,TRAINING DELIVERY,19235,Emp Svc Tng,Revenue,
29/04/2019,MC/197,900.00,0,Montgomery & Coupers Ltd,Killingbeck,42511,Consultancy Fees,Revenue,
29/04/2019,354878 C HASSALL,"1,162.50",0,Park Square Barristers,FIRE LEGAL,42587,Legal Expenses,Revenue,
29/04/2019,27181,602.40,0,Crossley Evans Ltd,BRADFORD,21014,General Rep & Maint,Revenue,
29/04/2019,0000145408,585.00,0,Goliath Footwear Ltd,SUPPLIES SECTION,41500,Clothing,Revenue,
29/04/2019,216667938,917.73,0,FUCHS LUBRICANTS (UK) LTD,FLEET MAINTENANCE,30102,Dir Cost-Oil & Lubes,Revenue,
29/04/2019,7970063972,"1,004.99",0,Mitchell Powersystems,FLEET MANAGEMENT,30004,Rep-Ext Contractors,Revenue,
29/04/2019,39127,"1,171.60",0,Redtronic Ltd,FLEET MANAGEMENT,34002,Vhcle Leas Misc Exp,Revenue,
29/04/2019,4505,"1,265.00",0,Concept Print,SUPPLIES SECTION,42000,Printing,Revenue,
29/04/2019,4504,"1,630.00",0,Concept Print,SUPPLIES SECTION,42000,Printing,Revenue,
29/04/2019,300231844,"1,083.60",0,Freight Transport Association,FLEET MANAGEMENT,44600,Subscriptions,Revenue,
29/04/2019,LMINV-2601,"1,650.00",0,Leeds Mind,TRAINING DELIVERY,19235,Emp Svc Tng,Revenue,
29/04/2019,EXI1270199,"2,010.75",0,Lex Autolease,FLEET MANAGEMENT,34001,Vehicle Leasing,Revenue,
29/04/2019,1970,560.00,0,Hall Lane Recyclers Ltd,Dewsbury New,40025,Scrap Cars Purch,Revenue,
29/04/2019,027438,753.78,0,BCS Electrics Ltd,Various,20000,Ann Contract/Service,Revenue,
29/04/2019,9302940352,783.84,0,Seton,Information Technlgy,42100,Stationery,Revenue,
29/04/2019,0940000048-077D,"1,250.54",0,Airwave Solutions Ltd,Information Technlgy,43026,Radio Licensing,Revenue,
29/04/2019,27232,655.20,0,Crossley Evans Ltd,TRAINING DELIVERY,28506,Refuse Collect/Disp,Revenue,
29/04/2019,27240,602.40,0,Crossley Evans Ltd,TRAINING DELIVERY,28506,Refuse Collect/Disp,Revenue,
29/04/2019,27241,585.60,0,Crossley Evans Ltd,TRAINING DELIVERY,28506,Refuse Collect/Disp,Revenue,
29/04/2019,4322400,"161,633.06",0,Insight Direct (UK) Ltd,Information Technlgy,43103,ICT Maintenance & Support,Revenue,
29/04/2019,MC/186,"1,887.50",0,Montgomery & Coupers Ltd,Various,20001,Water Management Legionella,Revenue,
29/04/2019,INV-1749,"1,050.00",0,Robert Whetham Associates,Corporate Management and Support,59058,Fee-External,Capital,
29/04/2019,MC/198,"4,950.00",0,Montgomery & Coupers Ltd,PROPERTY,42613,Feasibility Study,Revenue,
29/04/2019,MC/199,790.00,0,Montgomery & Coupers Ltd,Corporate Management and Support,59061,Inst Srv-Commctn,Capital,
29/04/2019,INV/4986,581.00,0,Industrial Door Solutions Limited,RAWDON,21006,Appliance Bay Doors,Revenue,
29/04/2019,676561,950.00,0,Access Uk Ltd,Corporate Management and Support,59166,Computer Costs,Capital,
29/04/2019,655563400000007,958.29,0,Yorkshire Water,Corporate Management and Support,59164,Equipment,Capital,
29/04/2019,MC/202,900.00,0,Montgomery & Coupers Ltd,Killingbeck,42511,Consultancy Fees,Revenue,
29/04/2019,LGWBW5KL,"4,307.70",0,Npower Ltd,NEW CONTROL PROJECT,25000,Energy-Electric,Revenue,
29/04/2019,LGWBW5KM,"2,086.03",0,Npower Ltd,BRADFORD,25000,Energy-Electric,Revenue,
29/04/2019,LGWBW5KR,"1,126.27",0,Npower Ltd,LEEDS,25000,Energy-Electric,Revenue,
29/04/2019,LGWBW5KJ,992.87,0,Npower Ltd,Killingbeck,25000,Energy-Electric,Revenue,
29/04/2019,LGWBXTVY,564.46,0,Npower Ltd,South Kirkby,25000,Energy-Electric,Revenue,
29/04/2019,815825,"1,475.00",0,Fire Service College Limited,TRAINING DELIVERY,19240,Prot/Prev Tng,Revenue,
29/04/2019,91559379,"2,750.00",0,Serco Ltd,PUBLIC INFORMATION,40221,Publty/Promtn/Media,Revenue,
29/04/2019,LGWBW5KF,"8,543.13",0,Npower Ltd,PROPERTY,25000,Energy-Electric,Revenue,
29/04/2019,LGWBXTT9,746.03,0,Npower Ltd,MIRFIELD,25000,Energy-Electric,Revenue,
29/04/2019,LGWBXTVD,845.38,0,Npower Ltd,ODSAL,25000,Energy-Electric,Revenue,
29/04/2019,INV/4965,512.00,0,Industrial Door Solutions Limited,USAR,21006,Appliance Bay Doors,Revenue,
29/04/2019,LGWBXTVC,923.78,0,Npower Ltd,MORLEY,25000,Energy-Electric,Revenue,
29/04/2019,LGWBXTTZ,921.95,0,Npower Ltd,FEATHERSTONE,25000,Energy-Electric,Revenue,
30/04/2019,LGWBXTVL,893.78,0,Npower Ltd,WAKEFIELD,25000,Energy-Electric,Revenue,
30/04/2019,LGWBXTVR,891.72,0,Npower Ltd,BINGLEY,25000,Energy-Electric,Revenue,
30/04/2019,LGWBXTVQ,857.61,0,Npower Ltd,RAWDON,25000,Energy-Electric,Revenue,
30/04/2019,LGWBXTVB,996.68,0,Npower Ltd,MOORTOWN,25000,Energy-Electric,Revenue,
30/04/2019,LGWBXTVS,"1,060.28",0,Npower Ltd,CASTLEFORD,25000,Energy-Electric,Revenue,
30/04/2019,LGWBXTT6,"1,066.36",0,Npower Ltd,ILLINGWORTH,25000,Energy-Electric,Revenue,
30/04/2019,LGWBXTVT,"1,100.00",0,Npower Ltd,Cleckheaton,25000,Energy-Electric,Revenue,
30/04/2019,LGWBXTVV,"1,151.55",0,Npower Ltd,COOKRIDGE,25000,Energy-Electric,Revenue,
30/04/2019,LGWBXTVM,"1,310.20",0,Npower Ltd,WETHERBY,25000,Energy-Electric,Revenue,
30/04/2019,LGWBXTT7,"1,345.46",0,Npower Ltd,KEIGHLEY,25000,Energy-Electric,Revenue,
30/04/2019,LGWBXTTX,"1,390.94",0,Npower Ltd,PROPERTY,25000,Energy-Electric,Revenue,
30/04/2019,LGWBXTVJ,"1,574.82",0,Npower Ltd,Slaithwaite,25000,Energy-Electric,Revenue,
30/04/2019,LGWBXTTY,"1,953.01",0,Npower Ltd,FAIRWEATHER GREEN,25000,Energy-Electric,Revenue,
30/04/2019,LGWBXTT3,"2,456.26",0,Npower Ltd,HALIFAX,25000,Energy-Electric,Revenue,
30/04/2019,LGWBXTVP,"2,988.92",0,Npower Ltd,HUNSLET,25000,Energy-Electric,Revenue,
30/04/2019,LGWBXTVN,"3,838.65",0,Npower Ltd,HUDDERSFIELD,25000,Energy-Electric,Revenue,
30/04/2019,LGWBXTVW,"3,932.24",0,Npower Ltd,STANNINGLEY,25000,Energy-Electric,Revenue,
30/04/2019,981835,800.00,0,Gritit Ltd,PROPERTY,24000,Grounds Maintenance,Revenue,
30/04/2019,1537855,"2,365.95",0,Helloprint,PUBLIC INFORMATION,40221,Publty/Promtn/Media,Revenue,
30/04/2019,LGWBW5KH,793.10,0,Npower Ltd,Dewsbury New,25000,Energy-Electric,Revenue,
30/04/2019,LGWBW5KK,754.95,0,Npower Ltd,Shipley New,25000,Energy-Electric,Revenue,
30/04/2019,2367447,"3,102.00",0,Bayford Oil,BRADFORD,30200,Vehicle Fuel,Revenue,
01/05/2019,9114,18812.54,0,Wharfedale Construction Co Ltd,CORPORATE MANAGEMENT AND SUPPORT,59052,Cont-External,Capital,
01/05/2019,B-21886,9247,0,Acorn Analytical Services Ltd,CORPORATE MANAGEMENT AND SUPPORT,59052,Cont-External,Capital,
01/05/2019,96,1420,0,MS Transmissions Ltd,FLEET MANAGEMENT,30004,Rep-Ext Contractors,Revenue,
01/05/2019,1971,1310,0,Hall Lane Recyclers Ltd,Cleckheaton,40025,Scrap Cars Purch,Revenue,
01/05/2019,6291322364,7703.14,0,Leeds City Council,Various,28502,Contract Cleaning,Revenue,
01/05/2019,6291322377,7703.14,0,Leeds City Council,Various,28502,Contract Cleaning,Revenue,
01/05/2019,655624410000004,683.21,0,Yorkshire Water,CORPORATE MANAGEMENT AND SUPPORT,59164,Equipment,Capital,
01/05/2019,655624400000006,619.21,0,Yorkshire Water,CORPORATE MANAGEMENT AND SUPPORT,59164,Equipment,Capital,
01/05/2019,655624390000002,868.83,0,Yorkshire Water,CORPORATE MANAGEMENT AND SUPPORT,59164,Equipment,Capital,
01/05/2019,655624380000004,1427.11,0,Yorkshire Water,CORPORATE MANAGEMENT AND SUPPORT,59164,Equipment,Capital,
01/05/2019,655624360000008,958.29,0,Yorkshire Water,CORPORATE MANAGEMENT AND SUPPORT,59164,Equipment,Capital,
01/05/2019,65562435000000X,958.29,0,Yorkshire Water,CORPORATE MANAGEMENT AND SUPPORT,59164,Equipment,Capital,
02/05/2019,CFOA4743,65000,0,Chief Fire Officers Association,FINANCE SECTION,44600,Subscriptions,Revenue,
02/05/2019,108185,2416.53,0,Redfern Travel Ltd,FINANCE SECTION,43500,Subsistence Allowncs,Revenue,
02/05/2019,BC-03-19-S2150,27917.39,0,Bristol Care,SUPPLIES SECTION,41900,Laundry,Revenue,
02/05/2019,141250,2691,0,Physio Med Ltd,Health & Safety,18301,Specialists Fees,Revenue,
02/05/2019,IN26825,4228.6,0,Gremedia Screenprint Ltd,WATER OFFICE,40027,Hydrants Repair,Revenue,
02/05/2019,8604799227,5000,0,KC - Document Solutions,FINANCE SECTION,42539,Professional Service,Revenue,
02/05/2019,TK1257261,11816.8,0,Thomas Kneale & Co Ltd,Fire Safety Prev,40037,,Revenue,
02/05/2019,9105903400190329,12052.6,0,Yorkshire Water,Various,26500,Water - Metered,Revenue,
03/05/2019,2219,-3229.25,0,Emergency One (Uk) Ltd,FLEET MANAGEMENT,30004,Rep-Ext Contractors,Revenue,
03/05/2019,22809,917.78,0,Emergency One (Uk) Ltd,FLEET MAINTENANCE,30001,Dir Cost-Spare Parts,Revenue,
03/05/2019,23120,755,0,Emergency One (Uk) Ltd,FLEET MAINTENANCE,30001,Dir Cost-Spare Parts,Revenue,
03/05/2019,TFM664/03,650,0,Thomson FM Ltd,PROPERTY,42511,Consultancy Fees,Revenue,
03/05/2019,23140,557.93,0,Emergency One (Uk) Ltd,FLEET MANAGEMENT,30004,Rep-Ext Contractors,Revenue,
03/05/2019,23141,710.8,0,Emergency One (Uk) Ltd,FLEET MANAGEMENT,30004,Rep-Ext Contractors,Revenue,
03/05/2019,981836,1465,0,Gritit Ltd,Various,24000,Grounds Maintenance,Revenue,
03/05/2019,981834,1318.73,0,Gritit Ltd,Various,24000,Grounds Maintenance,Revenue,
03/05/2019,128888,3005,0,Keela International Ltd,SUPPLIES SECTION,41500,Clothing,Revenue,
03/05/2019,1976,2800,0,Hall Lane Recyclers Ltd,TRAINING DELIVERY,40025,Scrap Cars Purch,Revenue,
07/05/2019,1143,750,0,Mrs C Livesey T/a Warmbread,PUBLIC INFORMATION,40221,Publty/Promtn/Media,Revenue,
07/05/2019,10938,1570,0,Rosenbauer UK PLC,OPERATIONS EQUIPMENT,40005,Operational Equ Pch,Revenue,
07/05/2019,10933,3720.84,0,Rosenbauer UK PLC,SUPPLIES SECTION,41500,Clothing,Revenue,
07/05/2019,10934,3110,0,Rosenbauer UK PLC,SUPPLIES SECTION,41500,Clothing,Revenue,
07/05/2019,93553,1678.6,0,Wm Sugden & Sons Ltd,SUPPLIES SECTION,41500,Clothing,Revenue,
07/05/2019,0022,1100,0,Primal Kitchen Ltd,RECRUITS,40502,Food,Revenue,
07/05/2019,69,2800,0,Michael Wood Management Consultancy,FINANCE SECTION,42511,Consultancy Fees,Revenue,
07/05/2019,027536,1470.03,0,BCS Electrics Ltd,CORPORATE MANAGEMENT AND SUPPORT,59052,Cont-External,Capital,
07/05/2019,CDP.JL.18252.012,1000,0,Carter Towler Ltd,CORPORATE MANAGEMENT AND SUPPORT,59058,Fee-External,Capital,
07/05/2019,0994,2120,0,Wm Projects Ltd,CORPORATE MANAGEMENT AND SUPPORT,59052,Cont-External,Capital,
07/05/2019,100043005,1200,0,MPL (Yorkshire) Ltd T/A MPL,CORPORATE MANAGEMENT AND SUPPORT,59164,Equipment,Capital,
07/05/2019,1128775,19500,0,Fireangel Safety Technology Ltd,CORPORATE MANAGEMENT AND SUPPORT,59164,Equipment,Capital,
07/05/2019,128889,3898.5,0,Keela International Ltd,CORPORATE MANAGEMENT AND SUPPORT,59164,Equipment,Capital,
07/05/2019,0993,3960,0,Wm Projects Ltd,CORPORATE MANAGEMENT AND SUPPORT,59052,Cont-External,Capital,
07/05/2019,MJA01356,5366,0,Mja Consultants,CORPORATE MANAGEMENT AND SUPPORT,59052,Cont-External,Capital,
07/05/2019,48231,577.5,0,Ask,SUPPLIES SECTION,42100,Stationery,Revenue,
07/05/2019,7000031948,500,0,NHS England,Comah,43500,Subsistence Allowncs,Revenue,
07/05/2019,7000031949,500,0,NHS England,Comah,43500,Subsistence Allowncs,Revenue,
07/05/2019,XASI4030115,1684.69,0,Police And Crime Commissioner WY,Comah,43500,Subsistence Allowncs,Revenue,
07/05/2019,E2011071604,3036.4,0,Allstar Business Solutions Ltd,Various,30200,Vehicle Fuel,Revenue,
08/05/2019,34802,830.1,0,Talking Headsets Ltd,TRAINING DELIVERY,40006,Training Equ Purch,Revenue,
08/05/2019,04/19,3680,0,Dr N A L Smith (Medical Services) L,Health & Safety,18301,Specialists Fees,Revenue,
08/05/2019,1,550,0,Suzanne Shenderey Hypnotherapy,Health & Safety,40035,Wellbeing,Revenue,
08/05/2019,CM2019/20-28,900,0,AFSA,CORPORATE DIVERSITY,44600,Subscriptions,Revenue,
08/05/2019,1936,560,0,Hall Lane Recyclers Ltd,LEEDS,40025,Scrap Cars Purch,Revenue,
08/05/2019,MC/200,4500,0,Montgomery & Coupers Ltd,PROPERTY,42613,Feasibility Study,Revenue,
08/05/2019,4549,1640,0,The Outreach Organisation Ltd,TRAINING DELIVERY,19241,Service Supp Tng,Revenue,
08/05/2019,4553,2420,0,The Outreach Organisation Ltd,TRAINING DELIVERY,19241,Service Supp Tng,Revenue,
08/05/2019,4621,1210,0,The Outreach Organisation Ltd,TRAINING DELIVERY,19241,Service Supp Tng,Revenue,
08/05/2019,4576,2325,0,The Outreach Organisation Ltd,TRAINING DELIVERY,19238,Ops Res Tng,Revenue,
08/05/2019,2102,1157.49,0,Trafficlear Ltd,FLEET MANAGEMENT,34002,Vhcle Leas Misc Exp,Revenue,
08/05/2019,2116,2297.47,0,Trafficlear Ltd,FLEET MANAGEMENT,34002,Vhcle Leas Misc Exp,Revenue,
08/05/2019,2107,975.04,0,Trafficlear Ltd,FLEET MANAGEMENT,34002,Vhcle Leas Misc Exp,Revenue,
08/05/2019,2110,975.04,0,Trafficlear Ltd,FLEET MANAGEMENT,34002,Vhcle Leas Misc Exp,Revenue,
08/05/2019,2108,975.04,0,Trafficlear Ltd,FLEET MANAGEMENT,34002,Vhcle Leas Misc Exp,Revenue,
08/05/2019,2117,3937.3,0,Trafficlear Ltd,FLEET MANAGEMENT,34002,Vhcle Leas Misc Exp,Revenue,
08/05/2019,23149,7344,0,Emergency One (Uk) Ltd,FLEET MANAGEMENT,30004,Rep-Ext Contractors,Revenue,
08/05/2019,INV-42,6760,0,The Riot Act Ltd,Bradford DFSO,45108,Fire Prevn Pblcty,Revenue,
08/05/2019,23150,828.9,0,Emergency One (Uk) Ltd,FLEET MANAGEMENT,30004,Rep-Ext Contractors,Revenue,
08/05/2019,23151,739.45,0,Emergency One (Uk) Ltd,FLEET MANAGEMENT,30004,Rep-Ext Contractors,Revenue,
08/05/2019,23152,1083.31,0,Emergency One (Uk) Ltd,FLEET MANAGEMENT,30004,Rep-Ext Contractors,Revenue,
08/05/2019,29687,1285,0,Northern Pump Distributors,WETHERBY,21014,General Rep & Maint,Revenue,
09/05/2019,40161611,-1580,0,Local Government Association,Corporate Governance,43501,Conference Expenses,Revenue,
09/05/2019,2021157,900,0,Cleanbright (Leeds) Ltd,PROPERTY,28500,Window Cleaning,Revenue,
09/05/2019,027578,2259.37,0,BCS Electrics Ltd,BRADFORD,20000,Ann Contract/Service,Revenue,
09/05/2019,MJA01366,5410,0,Mja Consultants,CORPORATE MANAGEMENT AND SUPPORT,59052,Cont-External,Capital,
09/05/2019,027574,824.82,0,BCS Electrics Ltd,CORPORATE MANAGEMENT AND SUPPORT,59052,Cont-External,Capital,
09/05/2019,0319020,7062.8,0,A E Yates Ltd,CORPORATE MANAGEMENT AND SUPPORT,59060,Fee-Highways,Capital,
09/05/2019,027577,2566.63,0,BCS Electrics Ltd,HALIFAX,20000,Ann Contract/Service,Revenue,
09/05/2019,A9980144082,549.65,0,Ats Euromaster Ltd,FLEET MANAGEMENT,30000,Tyre Purchase,Revenue,
09/05/2019,027575,2248.39,0,BCS Electrics Ltd,Mirfield Fire,21014,General Rep & Maint,Revenue,
09/05/2019,146878,4528.85,0,Southcombe Brothers Ltd,SUPPLIES SECTION,41500,Clothing,Revenue,
09/05/2019,SI-583,558.33,0,Conceptrus,Health & Safety,40022,Gym Equip Repair/Maint,Revenue,
09/05/2019,93658,1589.85,0,Wm Sugden & Sons Ltd,RECRUITS,41500,Clothing,Revenue,
09/05/2019,3469818,1049.04,0,CCS Media Ltd,SUPPLIES SECTION,43106,ICT Consumables,Revenue,
09/05/2019,935386822,1838.9,0,Arco Group,OPERATIONS EQUIPMENT,40005,Operational Equ Pch,Revenue,
09/05/2019,96070A,3268.25,0,Townley Network Solutions Ltd,STANNINGLEY,43015,Landlines Call Charges,Revenue,
09/05/2019,2100,769.71,0,Trafficlear Ltd,FLEET MANAGEMENT,34002,Vhcle Leas Misc Exp,Revenue,
09/05/2019,40100583,1635,0,Local Government Association,Corporate Governance,43501,Conference Expenses,Revenue,
09/05/2019,INV02727,6146,0,3Tc Software Ltd,Information Technlgy,43103,ICT Maintenance & Support,Revenue,
10/05/2019,MLCR084709,-594.12,-42.58,Lex Autolease,FLEET MANAGEMENT,34001,Vehicle Leasing,Revenue,
10/05/2019,MLCR084710,-603.7,-40.40,Lex Autolease,ICT Strategy,34001,Vehicle Leasing,Revenue,
10/05/2019,70123902,-676.21,0,Yorkshire Water,CORPORATE MANAGEMENT AND SUPPORT,59164,Equipment,Capital,
10/05/2019,2910163580,500,0,Draeger Ltd,OPERATIONS EQUIPMENT,40005,Operational Equ Pch,Revenue,
10/05/2019,INV/5098,1305.5,0,Industrial Door Solutions Limited,TRAINING DELIVERY,21006,Appliance Bay Doors,Revenue,
10/05/2019,I002303,894,0,H&H Agency Ltd,PUBLIC INFORMATION,40221,Publty/Promtn/Media,Revenue,
10/05/2019,I002293,3520,0,H&H Agency Ltd,PUBLIC INFORMATION,40221,Publty/Promtn/Media,Revenue,
10/05/2019,027583,625.6,0,BCS Electrics Ltd,HALIFAX,20000,Ann Contract/Service,Revenue,
10/05/2019,MLIN084712,951.3,66.14,Lex Autolease,Leeds Dist Com,34001,Vehicle Leasing,Revenue,
10/05/2019,027604,725.2,0,BCS Electrics Ltd,TRAINING DELIVERY,21013,Electrical Reps (Fr),Revenue,
10/05/2019,TNIN075979,780.3,78.03,Lex Autolease,ICT Strategy,34001,Vehicle Leasing,Revenue,
10/05/2019,027602,1150.23,0,BCS Electrics Ltd,CORPORATE MANAGEMENT AND SUPPORT,59052,Cont-External,Capital,
10/05/2019,027603,1966.75,0,BCS Electrics Ltd,CORPORATE MANAGEMENT AND SUPPORT,59052,Cont-External,Capital,
10/05/2019,027601,2328.26,0,BCS Electrics Ltd,CORPORATE MANAGEMENT AND SUPPORT,59052,Cont-External,Capital,
10/05/2019,655604180000009,676.21,0,Yorkshire Water,CORPORATE MANAGEMENT AND SUPPORT,59164,Equipment,Capital,
10/05/2019,SI-1560,2165,0,wewow Limited,CORPORATE MANAGEMENT AND SUPPORT,59052,Cont-External,Capital,
10/05/2019,B-21665,500,0,Acorn Analytical Services Ltd,CORPORATE MANAGEMENT AND SUPPORT,59058,Fee-External,Capital,
10/05/2019,027555,18145.73,0,BCS Electrics Ltd,CORPORATE MANAGEMENT AND SUPPORT,59052,Cont-External,Capital,
10/05/2019,027554,23305.18,0,BCS Electrics Ltd,CORPORATE MANAGEMENT AND SUPPORT,59052,Cont-External,Capital,
10/05/2019,91197191,6265.36,0,Vodafone (Mobiles),Information Technlgy,43017,Corporate Mobile Phone,Revenue,
10/05/2019,2389589,2594.5,0,Bayford Oil,LEEDS,30200,Vehicle Fuel,Revenue,
10/05/2019,2389912,3644.75,0,Bayford Oil,HUNSLET,30200,Vehicle Fuel,Revenue,
10/05/2019,2402868,4151.2,0,Bayford Oil,Ossett New,30200,Vehicle Fuel,Revenue,
10/05/2019,2398039,3113.4,0,Bayford Oil,HUDDERSFIELD,30200,Vehicle Fuel,Revenue,
10/05/2019,2400658,3138.3,0,Bayford Oil,PONTEFRACT,30200,Vehicle Fuel,Revenue,
10/05/2019,2413474,3138.3,0,Bayford Oil,Cleckheaton,30200,Vehicle Fuel,Revenue,
10/05/2019,134407,1000,0,Clarion Solicitors Limited,FIRE LEGAL,42587,Legal Expenses,Revenue,
10/05/2019,KEI004009,745.7,0,Stertil UK Ltd,FLEET MAINTENANCE,30005,Workshop Equipment,Revenue,
10/05/2019,52402064,660,0,Volvo Group Uk Ltd,Information Technlgy,43103,ICT Maintenance & Support,Revenue,
13/05/2019,12482,2900,0,West Yorkshire Windscreens Ltd,FLEET MANAGEMENT,30004,Rep-Ext Contractors,Revenue,
13/05/2019,20190426-1088,2300,0,Fire Investigations (Uk) Llp,TRAINING DELIVERY,19240,Prot/Prev Tng,Revenue,
13/05/2019,PAYL3 APP LEVY,16745,0,HMRC Cumbernauld,TRAINING DELIVERY,19202,Apprentice Tng,Revenue,
13/05/2019,756625,750,0,G.D.B Manufacturing,Fire Safety Prev,41500,Clothing,Revenue,
13/05/2019,270.18.19,2074.55,0,Opinion Research Services Ltd,CORPORATE SERVICES,43000,Investments,Revenue,
14/05/2019,13825775,-705.43,0,Corona Energy,WETHERBY,25001,Energy-Gas,Revenue,
14/05/2019,1920009,552.52,0,High Impact Development Ltd,EMPLOYEE RESOURCING,42511,Consultancy Fees,Revenue,
14/05/2019,2513487,57336.12,0,Home Office,OPERATIONS,43026,Radio Licensing,Revenue,
14/05/2019,27330,1248,0,Crossley Evans Ltd,OPERATIONS EQUIPMENT,40005,Operational Equ Pch,Revenue,
14/05/2019,027483,755.99,0,BCS Electrics Ltd,ILKLEY,21013,Electrical Reps (Fr),Revenue,
14/05/2019,6419,1570,0,Geckops Ltd t/a Gecko Property Solu,Holmfirth,21014,General Rep & Maint,Revenue,
14/05/2019,027485,703.89,0,BCS Electrics Ltd,HUNSLET,21013,Electrical Reps (Fr),Revenue,
14/05/2019,493556G,2753.92,0,Arena Group Limited,CORPORATE SERVICES,42201,Photocopier Charges,Revenue,
14/05/2019,SND00001575,6500,0,AON Limited Accounts Division,FINANCE SECTION,42508,Central Insurances,Revenue,
14/05/2019,SRD00002749,11064.54,0,AON Limited Accounts Division,FINANCE SECTION,42508,Central Insurances,Revenue,
14/05/2019,SRD00002750,4971.53,0,AON Limited Accounts Division,FINANCE SECTION,42508,Central Insurances,Revenue,
14/05/2019,SRD00002752,66639.32,0,AON Limited Accounts Division,FINANCE SECTION,42508,Central Insurances,Revenue,
14/05/2019,SRD00002751,15389.66,0,AON Limited Accounts Division,FINANCE SECTION,42508,Central Insurances,Revenue,
14/05/2019,13957759,686.85,0,Corona Energy,BINGLEY,25001,Energy-Gas,Revenue,
14/05/2019,SND00001541,9240,0,AON Limited Accounts Division,EMPLOYEE RESOURCING,18300,Employee Insurance,Revenue,
14/05/2019,SRD00002810,392000,0,AON Limited Accounts Division,EMPLOYEE RESOURCING,18300,Employee Insurance,Revenue,
14/05/2019,SRD00002795,3696,0,AON Limited Accounts Division,FINANCE SECTION,42508,Central Insurances,Revenue,
14/05/2019,SRD00002811,43120,0,AON Limited Accounts Division,FINANCE SECTION,42508,Central Insurances,Revenue,
14/05/2019,SRD00002794,6633.76,0,AON Limited Accounts Division,FINANCE SECTION,42508,Central Insurances,Revenue,
14/05/2019,13958515,5710.29,0,Corona Energy,PROPERTY,25001,Energy-Gas,Revenue,
14/05/2019,13958468,711.84,0,Corona Energy,Killingbeck,25001,Energy-Gas,Revenue,
14/05/2019,13958440,539.52,0,Corona Energy,Rastrick,25001,Energy-Gas,Revenue,
14/05/2019,23306,1115.5,0,Mitton Mechanical Services Ltd,Meltham,21012,Heating & Mechanical,Revenue,
14/05/2019,13958370,538.71,0,Corona Energy,PONTEFRACT,25001,Energy-Gas,Revenue,
14/05/2019,0024,500,0,Primal Kitchen Ltd,RECRUITS,40502,Food,Revenue,
15/05/2019,CE10358,-21425,0,WCS Environmental Ltd,LEEDS,20001,Water Management Legionella,Revenue,
15/05/2019,CE118882,600,0,WCS Environmental Ltd,MYTHOLMROYD,20001,Water Management Legionella,Revenue,
15/05/2019,1315,2962,0,Pisces Pumps Ltd,PROPERTY,21014,General Rep & Maint,Revenue,
15/05/2019,70878,691.64,0,Delta Fire Ltd,OPERATIONS EQUIPMENT,40005,Operational Equ Pch,Revenue,
15/05/2019,027609,740.04,0,BCS Electrics Ltd,NORMANTON,21013,Electrical Reps (Fr),Revenue,
15/05/2019,13958072,551.5,0,Corona Energy,TRAINING DELIVERY,25001,Energy-Gas,Revenue,
15/05/2019,70879,781,0,Delta Fire Ltd,OPERATIONS EQUIPMENT,40005,Operational Equ Pch,Revenue,
15/05/2019,13958013,2075.44,0,Corona Energy,BRADFORD,25001,Energy-Gas,Revenue,
15/05/2019,13958010,681.53,0,Corona Energy,TODMORDEN,25001,Energy-Gas,Revenue,
15/05/2019,13957976,963.76,0,Corona Energy,NEW CONTROL PROJECT,25001,Energy-Gas,Revenue,
15/05/2019,027487,4355.61,0,BCS Electrics Ltd,CORPORATE MANAGEMENT AND SUPPORT,59052,Cont-External,Capital,
15/05/2019,027615,14599.89,0,BCS Electrics Ltd,CORPORATE MANAGEMENT AND SUPPORT,59052,Cont-External,Capital,
15/05/2019,027613,3559.54,0,BCS Electrics Ltd,CORPORATE MANAGEMENT AND SUPPORT,59052,Cont-External,Capital,
15/05/2019,027614,5928.6,0,BCS Electrics Ltd,CORPORATE MANAGEMENT AND SUPPORT,59052,Cont-External,Capital,
15/05/2019,675545,1011.75,0,Access Uk Ltd,CORPORATE MANAGEMENT AND SUPPORT,59166,Computer Costs,Capital,
15/05/2019,13957974,836.02,0,Corona Energy,TRAINING DELIVERY,25001,Energy-Gas,Revenue,
15/05/2019,13957744,850.97,0,Corona Energy,CASTLEFORD,25001,Energy-Gas,Revenue,
15/05/2019,INV/5045,1378.13,0,Industrial Door Solutions Limited,PROPERTY,21006,Appliance Bay Doors,Revenue,
15/05/2019,13957742,2551.26,0,Corona Energy,WAKEFIELD,25001,Energy-Gas,Revenue,
15/05/2019,13957740,1082.73,0,Corona Energy,KEIGHLEY,25001,Energy-Gas,Revenue,
15/05/2019,13957697,1017.72,0,Corona Energy,Slaithwaite,25001,Energy-Gas,Revenue,
15/05/2019,13957683,686.7,0,Corona Energy,MOORTOWN,25001,Energy-Gas,Revenue,
15/05/2019,13957625,2187.89,0,Corona Energy,HALIFAX,25001,Energy-Gas,Revenue,
15/05/2019,13957624,1316.81,0,Corona Energy,LEEDS,25001,Energy-Gas,Revenue,
15/05/2019,13957593,972.91,0,Corona Energy,RAWDON,25001,Energy-Gas,Revenue,
15/05/2019,13957344,828.59,0,Corona Energy,ILLINGWORTH,25001,Energy-Gas,Revenue,
15/05/2019,13957121,1180.8,0,Corona Energy,PROPERTY,25001,Energy-Gas,Revenue,
15/05/2019,13957013,1092.89,0,Corona Energy,Cleckheaton,25001,Energy-Gas,Revenue,
15/05/2019,0000145725,3900,0,Goliath Footwear Ltd,SUPPLIES SECTION,41500,Clothing,Revenue,
15/05/2019,CE117167,58630.4,0,WCS Environmental Ltd,Various,20001,Water Management Legionella,Revenue,
16/05/2019,0000145726,3519.67,0,Goliath Footwear Ltd,SUPPLIES SECTION,41500,Clothing,Revenue,
16/05/2019,44929,960,0,Leeds Pallet Co.Ltd.,TRAINING DELIVERY,40006,Training Equ Purch,Revenue,
16/05/2019,0208,540,0,Leeds Pallet Co.Ltd.,TRAINING DELIVERY,40006,Training Equ Purch,Revenue,
16/05/2019,91312194417,1783.24,0,Wakefield MDC,WAKEFIELD,28506,Refuse Collect/Disp,Revenue,
16/05/2019,13958443,645.16,0,Corona Energy,Dewsbury New,25001,Energy-Gas,Revenue,
16/05/2019,91312195173,866.14,0,Wakefield MDC,NORMANTON,28506,Refuse Collect/Disp,Revenue,
16/05/2019,1152361,939.6,0,AMG Group,SUPPLIES SECTION,40514,Emergency Food,Revenue,
16/05/2019,13958429,820.59,0,Corona Energy,ODSAL,25001,Energy-Gas,Revenue,
16/05/2019,91312195182,989.94,0,Wakefield MDC,Ossett New,28506,Refuse Collect/Disp,Revenue,
16/05/2019,91312195289,989.94,0,Wakefield MDC,CASTLEFORD,28506,Refuse Collect/Disp,Revenue,
16/05/2019,91312199838,989.94,0,Wakefield MDC,PONTEFRACT,28506,Refuse Collect/Disp,Revenue,
16/05/2019,91312203094,866.14,0,Wakefield MDC,South Kirkby,28506,Refuse Collect/Disp,Revenue,
16/05/2019,TK 1257262,2514.4,0,Thomas Kneale & Co Ltd,Fire Safety Prev,40037,,Revenue,
16/05/2019,027490,1255.37,0,BCS Electrics Ltd,Rastrick,21013,Electrical Reps (Fr),Revenue,
16/05/2019,027606,703.89,0,BCS Electrics Ltd,PROPERTY,21013,Electrical Reps (Fr),Revenue,
16/05/2019,13957430,707.1,0,Corona Energy,FAIRWEATHER GREEN,25001,Energy-Gas,Revenue,
16/05/2019,51433238,600,0,Mitsubishi Electric Europe B.V,Various,20000,Ann Contract/Service,Revenue,
16/05/2019,13957334,1096.09,0,Corona Energy,COOKRIDGE,25001,Energy-Gas,Revenue,
16/05/2019,I0021830,853.35,0,Merseyside Fire & Rescue Authority,USAR,30009,Long Term Capability Management,Revenue,
16/05/2019,6178216,870,0,Ricardo-Aea Limited,TRAINING DELIVERY,19239,Ops Supp Tng,Revenue,
16/05/2019,1064,525,0,K M D'Arcy Brown T/a Oriel Consulti,Health & Safety,18301,Specialists Fees,Revenue,
16/05/2019,1031,500,0,K M D'Arcy Brown T/a Oriel Consulti,Health & Safety,18301,Specialists Fees,Revenue,
16/05/2019,1018,500,0,K M D'Arcy Brown T/a Oriel Consulti,Health & Safety,18301,Specialists Fees,Revenue,
16/05/2019,INV/5173,3930,0,Industrial Door Solutions Limited,USAR,21006,Appliance Bay Doors,Revenue,
16/05/2019,INV-16315,3141,0,The Safety Group Ltd t/a Spectra Sa,Various,19241,Service Supp Tng,Revenue,
16/05/2019,1062,500,0,K M D'Arcy Brown T/a Oriel Consulti,Health & Safety,18301,Specialists Fees,Revenue,
16/05/2019,NC012772,3646,0,Gallagher Bassett International Ltd,FINANCE SECTION,42508,Central Insurances,Revenue,
16/05/2019,INV-1770,1972,0,Robert Whetham Associates,PROPERTY,20002,Contract Management,Revenue,
16/05/2019,26638,544.8,0,Crossley Evans Ltd,LEEDS,28506,Refuse Collect/Disp,Revenue,
16/05/2019,027616,8340.95,0,BCS Electrics Ltd,CORPORATE MANAGEMENT AND SUPPORT,59058,Fee-External,Capital,
16/05/2019,0000261411,1858.4,0,M I Supplies Ltd,SUPPLIES SECTION,41500,Clothing,Revenue,
20/05/2019,2231,5650,0,Lk Management Ltd,CORPORATE MANAGEMENT AND SUPPORT,59058,Fee-External,Capital,
20/05/2019,1683/1,1485,0,2H Architecture Limited,CORPORATE MANAGEMENT AND SUPPORT,59058,Fee-External,Capital,
20/05/2019,IN1191200025672,16062.86,0,GTT Communications,Various,43018,Wan Rental,Revenue,
20/05/2019,027641,5380.93,0,BCS Electrics Ltd,WETHERBY,21013,Electrical Reps (Fr),Revenue,
20/05/2019,70,2800,0,Michael Wood Management Consultancy,FINANCE SECTION,42511,Consultancy Fees,Revenue,
21/05/2019,26639,1298.4,0,Crossley Evans Ltd,OPERATIONS EQUIPMENT,40005,Operational Equ Pch,Revenue,
21/05/2019,0025,625,0,Primal Kitchen Ltd,RECRUITS,40502,Food,Revenue,
21/05/2019,93896,7392,0,Wm Sugden & Sons Ltd,SUPPLIES SECTION,41500,Clothing,Revenue,
21/05/2019,INV/CH186,2700,0,Park Square Barristers,FIRE LEGAL,42587,Legal Expenses,Revenue,
21/05/2019,MSSA-2019-0013,543.5,0,Acorn Chemical Services Ltd,SUPPLIES SECTION,28501,Cleaning Consumables,Revenue,
22/05/2019,OHU73,2145,0,Spire Leeds Hospital,Health & Safety,18301,Specialists Fees,Revenue,
22/05/2019,1009526551,560,0,Hays Specialist Recruitment,FINANCE SECTION,15001,Admin - Basic Pay,Revenue,
22/05/2019,EXI1277647,1376,0,Lex Autolease,FLEET MANAGEMENT,34001,Vehicle Leasing,Revenue,
22/05/2019,7402513522,2055.95,0,Dell Corporation,CORPORATE MANAGEMENT AND SUPPORT,59166,Computer Costs,Capital,
22/05/2019,7402513365,41121,0,Dell Corporation,CORPORATE MANAGEMENT AND SUPPORT,59166,Computer Costs,Capital,
22/05/2019,7402513567,1063.5,0,Dell Corporation,CORPORATE MANAGEMENT AND SUPPORT,59166,Computer Costs,Capital,
22/05/2019,LX31779,2210,0,Vodafone (Mobiles),CORPORATE MANAGEMENT AND SUPPORT,59166,Computer Costs,Capital,
22/05/2019,655634340000007,619.21,0,Yorkshire Water,CORPORATE MANAGEMENT AND SUPPORT,59164,Equipment,Capital,
22/05/2019,655634350000005,619.21,0,Yorkshire Water,CORPORATE MANAGEMENT AND SUPPORT,59164,Equipment,Capital,
22/05/2019,655634290000000,1540.11,0,Yorkshire Water,CORPORATE MANAGEMENT AND SUPPORT,59164,Equipment,Capital,
22/05/2019,655634330000009,684.21,0,Yorkshire Water,CORPORATE MANAGEMENT AND SUPPORT,59164,Equipment,Capital,
22/05/2019,238255,638.22,0,J R Industries Ltd,FLEET MAINTENANCE,30001,Dir Cost-Spare Parts,Revenue,
22/05/2019,655634360000003,696.57,0,Yorkshire Water,CORPORATE MANAGEMENT AND SUPPORT,59164,Equipment,Capital,
22/05/2019,655634300000004,958.29,0,Yorkshire Water,CORPORATE MANAGEMENT AND SUPPORT,59164,Equipment,Capital,
22/05/2019,655631300000005,683.21,0,Yorkshire Water,CORPORATE MANAGEMENT AND SUPPORT,59164,Equipment,Capital,
22/05/2019,655631280000003,1695.4,0,Yorkshire Water,CORPORATE MANAGEMENT AND SUPPORT,59164,Equipment,Capital,
22/05/2019,027640,1863.39,0,BCS Electrics Ltd,CORPORATE MANAGEMENT AND SUPPORT,59052,Cont-External,Capital,
22/05/2019,1009592823,610.05,0,Hays Specialist Recruitment,FINANCE SECTION,15001,Admin - Basic Pay,Revenue,
22/05/2019,444966,1329.92,0,OfficeXpress Europe Limited,SUPPLIES SECTION,43106,ICT Consumables,Revenue,
22/05/2019,3507633,1276.12,0,CCS Media Ltd,SUPPLIES SECTION,43106,ICT Consumables,Revenue,
22/05/2019,4513,3210,0,Concept Print,SUPPLIES SECTION,42000,PRINTING,Revenue,
22/05/2019,04427712,545.15,0,Plexus Law,FIRE LEGAL,42587,Legal Expenses,Revenue,
22/05/2019,3052465784,1595.68,0,British Oxygen Co Ltd,FLEET MAINTENANCE,30002,Consumables-Veh Rep,Revenue,
22/05/2019,24007A,760,0,Crofton Engineering Ltd,Rastrick,27500,"Fixtures, Fittings & Furns-R&M",Revenue,
22/05/2019,4843,1080,0,Allansound Communications,Various,20000,Ann Contract/Service,Revenue,
23/05/2019,B-22102,500,0,Acorn Analytical Services Ltd,CORPORATE MANAGEMENT AND SUPPORT,59058,Fee-External,Capital,
23/05/2019,655634310000002,958.29,0,Yorkshire Water,CORPORATE MANAGEMENT AND SUPPORT,59164,Equipment,Capital,
23/05/2019,655624370000006,958.29,0,Yorkshire Water,CORPORATE MANAGEMENT AND SUPPORT,59164,Equipment,Capital,
23/05/2019,IRIN654569,6309,0,Lex Autolease,FLEET MANAGEMENT,34001,Vehicle Leasing,Revenue,
23/05/2019,IRIN654771,5236.32,484.73,Lex Autolease,Kirklees Dist Com,34001,Vehicle Leasing,Revenue,
23/05/2019,IRIN654566,13231.2,0,Lex Autolease,FLEET MANAGEMENT,34001,Vehicle Leasing,Revenue,
23/05/2019,IRIN655188,5740.56,536.96,Lex Autolease,USAR,34001,Vehicle Leasing,Revenue,
23/05/2019,170,3000,0,Talklogic Limited,Information Technlgy,43103,ICT Maintenance & Support,Revenue,
23/05/2019,E2011120162,5791.12,0,Allstar Business Solutions Ltd,MORLEY,30200,Vehicle Fuel,Revenue,
24/05/2019,655634320000000,978.97,0,Yorkshire Water,CORPORATE MANAGEMENT AND SUPPORT,59164,Equipment,Capital,
24/05/2019,282371,5175.5,0,LiquidThinker Ltd,EMPLOYEE RESOURCING,42511,Consultancy Fees,Revenue,
24/05/2019,168778,1660,0,Respirex International,OPERATIONS EQUIPMENT,40005,Operational Equ Pch,Revenue,
24/05/2019,146941,3387,0,Southcombe Brothers Ltd,SUPPLIES SECTION,41500,Clothing,Revenue,
24/05/2019,146946,564.5,0,Southcombe Brothers Ltd,SUPPLIES SECTION,41500,Clothing,Revenue,
28/05/2019,ARL01195,3045,0,Airmax Remote,Information Technlgy,43101,Hardware Mtce&Suppor,Revenue,
28/05/2019,23240,1232.91,0,Emergency One (Uk) Ltd,FLEET MAINTENANCE,30001,Dir Cost-Spare Parts,Revenue,
28/05/2019,EXI1280099,559.56,0,Lex Autolease,FLEET MANAGEMENT,34001,Vehicle Leasing,Revenue,
29/05/2019,EXI1280597,718.03,65.32,Lex Autolease,Various,34001,Vehicle Leasing,Revenue,
29/05/2019,01283646360,681.02,0,EE Ltd (Airtime),Various,43017,Corporate Mobile Phone,Revenue,
29/05/2019,23302,892.5,0,Emergency One (Uk) Ltd,FLEET MANAGEMENT,30006,Ins Claims Excess,Revenue,
30/05/2019,2282,5112,0,Rh Environmental Services Ltd,Various,20000,Ann Contract/Service,Revenue,
30/05/2019,027486,510.11,0,BCS Electrics Ltd,STANNINGLEY,21013,Electrical Reps (Fr),Revenue,
30/05/2019,027644,8533.17,0,BCS Electrics Ltd,CORPORATE MANAGEMENT AND SUPPORT,59052,Cont-External,Capital,
30/05/2019,027642,2413.95,0,BCS Electrics Ltd,CORPORATE MANAGEMENT AND SUPPORT,59052,Cont-External,Capital,
30/05/2019,9124,8443.71,0,Wharfedale Construction Co Ltd,CORPORATE MANAGEMENT AND SUPPORT,59052,Cont-External,Capital,
30/05/2019,SI202148,11503.95,0,Dale Power Solutions Ltd,NEW CONTROL PROJECT,21013,Electrical Reps (Fr),Revenue,
30/05/2019,027657,1725.75,0,BCS Electrics Ltd,ODSAL,21013,Electrical Reps (Fr),Revenue,
31/05/2019,8604830649,252225,0,Kirklees Council,FINANCE SECTION,55005,Strategic Finance,Revenue,
31/05/2019,13826694,675.7,0,Corona Energy,Ossett New,25001,Energy-Gas,Revenue,
31/05/2019,983787,800,0,Gritit Ltd,PROPERTY,24000,Grounds Maintenance,Revenue,
31/05/2019,13826695,759.52,0,Corona Energy,Ossett New,25001,Energy-Gas,Revenue,
31/05/2019,13826696,905.88,0,Corona Energy,Ossett New,25001,Energy-Gas,Revenue,
31/05/2019,13872981,654.94,0,Corona Energy,Ossett New,25001,Energy-Gas,Revenue,
31/05/2019,96863A,3099.09,0,Townley Network Solutions Ltd,Various,43015,Landlines Call Charges,Revenue,
31/05/2019,108442,1267.5,0,Redfern Travel Ltd,FINANCE SECTION,35000,PUBLIC TRANSPORT,Revenue,
31/05/2019,2595,1007.5,0,Advanced Monitoring Limited,PROPERTY,20000,Ann Contract/Service,Revenue,
31/05/2019,983786,1318.73,0,Gritit Ltd,Various,24000,Grounds Maintenance,Revenue,
03/06/2019,997,660,0,SJ Facilities,KEIGHLEY,21014,General Rep & Maint,Revenue,
03/06/2019,MC/204,1382.5,0,Montgomery & Coupers Ltd,COPRORATE MANAGEMENT AND SUPPORT,59061,Inst Srv-Commctn,Capital,
03/06/2019,MJA01381,5112.1,0,Mja Consultants,COPRORATE MANAGEMENT AND SUPPORT,59052,Cont-External,Capital,
03/06/2019,996,1773,0,SJ Facilities,COPRORATE MANAGEMENT AND SUPPORT,59052,Cont-External,Capital,
03/06/2019,2448113,4894.11,0,Bayford Oil,STANNINGLEY,30200,Vehicle Fuel,Revenue,
03/06/2019,2453959,4165.2,0,Bayford Oil,Dewsbury New,30200,Vehicle Fuel,Revenue,
03/06/2019,3153,688,0,Karl Austerfield Roofing Ltd,Slaithwaite,21014,General Rep & Maint,Revenue,
03/06/2019,050419,507.85,0,Mill Pond Garage,FEATHERSTONE,30200,Vehicle Fuel,Revenue,
03/06/2019,4546,820,0,The Outreach Organisation Ltd,TRAINING DELIVERY,19241,Service Supp Tng,Revenue,
03/06/2019,027684,651.72,0,BCS Electrics Ltd,GARFORTH,20000,Ann Contract/Service,Revenue,
03/06/2019,027686,691.05,0,BCS Electrics Ltd,MIRFIELD,20000,Ann Contract/Service,Revenue,
03/06/2019,437585,607.61,0,B B N Fastnet,OPERATIONS EQUIPMENT,40005,Operational Equ Pch,Revenue,
03/06/2019,SINV063610,6854.65,0,Woodway Engineering Ltd,FLEET MANAGEMENT,34002,Vhcle Leas Misc Exp,Revenue,
04/06/2019,RACR301835,-501.14,0,Lex Autolease,FLEET MANAGEMENT,34001,Vehicle Leasing,Revenue,
04/06/2019,MSCR448567,-1377.6,0,Lex Autolease,FLEET MANAGEMENT,34001,Vehicle Leasing,Revenue,
04/06/2019,MSCR448807,-2223.7,0,Lex Autolease,FLEET MANAGEMENT,34001,Vehicle Leasing,Revenue,
04/06/2019,MSCR448808,-1209.24,0,Lex Autolease,FLEET MANAGEMENT,34001,Vehicle Leasing,Revenue,
04/06/2019,X/HT32146,750,0,Civica UK Ltd,TRAINING DELIVERY,19243,Tech Svcs Tng,Revenue,
04/06/2019,027656,759.92,0,BCS Electrics Ltd,Killingbeck,21013,Electrical Reps (Fr),Revenue,
04/06/2019,EXI1281397,4427.44,0,Lex Autolease,FLEET MANAGEMENT,34001,Vehicle Leasing,Revenue,
04/06/2019,027635,596.72,0,BCS Electrics Ltd,NEW CONTROL PROJECT,21013,Electrical Reps (Fr),Revenue,
04/06/2019,EXI1282447,2010.75,0,Lex Autolease,FLEET MANAGEMENT,34001,Vehicle Leasing,Revenue,
04/06/2019,0026,625,0,Primal Kitchen Ltd,RECRUITS,40502,Food,Revenue,
04/06/2019,11023,730,0,Rosenbauer UK PLC,OPERATIONS EQUIPMENT,40005,Operational Equ Pch,Revenue,
04/06/2019,19-1340,4085,0,XACT Consultancy & Training Ltd,TRAINING DELIVERY,19208,Fire Safy Crses-Extl,Revenue,
05/06/2019,MSCR448803,-2588.76,0,Lex Autolease,FLEET MANAGEMENT,34001,Vehicle Leasing,Revenue,
05/06/2019,300235634,1847,0,Freight Transport Association,TRAINING DELIVERY,19243,Tech Svcs Tng,Revenue,
05/06/2019,686704,2061.6,0,Access Uk Ltd,COPRORATE MANAGEMENT AND SUPPORT,59166,Computer Costs,Capital,
05/06/2019,74412,824.4,0,Saville Assessment Ltd,EMPLOYMENT SERVICES,42539,Professional Service,Revenue,
05/06/2019,EXI1283912,1789.9,154.17,Lex Autolease,Calderdale Dist Com,34001,Vehicle Leasing,Revenue,
05/06/2019,40100025,12946.88,0,Local Government Association,Corporate Governance,44502,AMA Grant,Revenue,
05/06/2019,PSI-0001508,24432,0,Synergi Software Ltd,Information Technlgy,43103,ICT Maintenance & Support,Revenue,
05/06/2019,PTC005544,1400,0,The Princes Trust,YOUNG FIREFIGHTERS,45109,Youth Training Exps,Revenue,
05/06/2019,PTC005565,1400,0,The Princes Trust,YOUNG FIREFIGHTERS,45109,Youth Training Exps,Revenue,
05/06/2019,20-R1105,11973,0,Weber Rescue Uk Ltd,OPERATIONS EQUIPMENT,40005,Operational Equ Pch,Revenue,
05/06/2019,0027,500,0,Primal Kitchen Ltd,RECRUITS,40502,Food,Revenue,
05/06/2019,E2011188593,2521.88,0,Allstar Business Solutions Ltd,Various,30200,Vehicle Fuel,Revenue,
05/06/2019,690024,1176.14,0,Access Uk Ltd,COPRORATE MANAGEMENT AND SUPPORT,59166,Computer Costs,Capital,
05/06/2019,655574130000001,1427.11,0,Yorkshire Water,COPRORATE MANAGEMENT AND SUPPORT,59164,Equipment,Capital,
06/06/2019,9918,1290,0,Burgess & Co Ltd,FLEET MAINTENANCE,30001,Dir Cost-Spare Parts,Revenue,
06/06/2019,10430,1238,0,T Kirk Forestry,National Resilience Distributed Learning,45119,USAR Training,Revenue,
06/06/2019,298971,3000,0,The Knowledge Academy Ltd,TRAINING DELIVERY,19235,Emp Svc Tng,Revenue,
06/06/2019,9135,1298,0,Wharfedale Construction Co Ltd,TRAINING DELIVERY,21014,General Rep & Maint,Revenue,
06/06/2019,INV-1774,855,0,Robert Whetham Associates,PROPERTY,42511,Consultancy Fees,Revenue,
06/06/2019,1009592302,576.1,0,Hays Specialist Recruitment,FINANCE SECTION,15001,Admin - Basic Pay,Revenue,
06/06/2019,4547,820,0,The Outreach Organisation Ltd,TRAINING DELIVERY,19223,Extrication,Revenue,
06/06/2019,INV-1776,572,0,Robert Whetham Associates,RAWDON,21013,Electrical Reps (Fr),Revenue,
06/06/2019,INV-1777,520,0,Robert Whetham Associates,WETHERBY,21013,Electrical Reps (Fr),Revenue,
06/06/2019,INV-1779,702,0,Robert Whetham Associates,SUPPLIES SECTION,21013,Electrical Reps (Fr),Revenue,
06/06/2019,INV-1780,702,0,Robert Whetham Associates,NEW CONTROL PROJECT,21013,Electrical Reps (Fr),Revenue,
06/06/2019,INV-1781,624,0,Robert Whetham Associates,NEW CONTROL PROJECT,21013,Electrical Reps (Fr),Revenue,
07/06/2019,SI-10350-2019,1035,0,Bauer Kompressoren UK Ltd,COPRORATE MANAGEMENT AND SUPPORT,59052,Cont-External,Capital,
07/06/2019,SI-10323-2019,26059.35,0,Bauer Kompressoren UK Ltd,COPRORATE MANAGEMENT AND SUPPORT,59052,Cont-External,Capital,
07/06/2019,T44770SI,1296,0,Mountain Training Trust,TRAINING DELIVERY,19241,Service Supp Tng,Revenue,
07/06/2019,71,2800,0,Michael Wood Management Consultancy,FINANCE SECTION,42511,Consultancy Fees,Revenue,
07/06/2019,146987,1806.4,0,Southcombe Brothers Ltd,SUPPLIES SECTION,41500,Clothing,Revenue,
07/06/2019,0000262236,2810.5,0,M I Supplies Ltd,SUPPLIES SECTION,41500,Clothing,Revenue,
07/06/2019,TFM664/04,3000,0,Thomson FM Ltd,PROPERTY,42511,Consultancy Fees,Revenue,
07/06/2019,983788,1240,0,Gritit Ltd,Various,24000,Grounds Maintenance,Revenue,
07/06/2019,ISL154932,10000,0,QA Limited,TRAINING DELIVERY,19206,Further Educ'N-Extl,Revenue,
07/06/2019,ISL154933,10000,0,QA Limited,TRAINING DELIVERY,19206,Further Educ'N-Extl,Revenue,
07/06/2019,OP/I840906,10776,0,Phoenix Software Ltd,Information Technlgy,43103,ICT Maintenance & Support,Revenue,
07/06/2019,INV-1775,4397.75,0,Robert Whetham Associates,PROPERTY,42511,Consultancy Fees,Revenue,
07/06/2019,19-1471,900,0,XACT Consultancy & Training Ltd,TRAINING DELIVERY,19208,Fire Safy Crses-Extl,Revenue,
07/06/2019,2517049,56981.42,0,Home Office,OPERATIONS,43026,Radio Licensing,Revenue,
10/06/2019,CN26625,-1231.76,0,Skyguard Ltd,Fire Safety Prev,43024,Pagers,Revenue,
10/06/2019,CN26624,-2382.84,0,Skyguard Ltd,Fire Safety Prev,43024,Pagers,Revenue,
10/06/2019,CN26622,-1396.8,0,Skyguard Ltd,Fire Safety Prev,43024,Pagers,Revenue,
10/06/2019,05/19,3220,0,Dr N A L Smith (Medical Services) L,Health & Safety,18301,Specialists Fees,Revenue,
10/06/2019,20-R1106,1379.85,0,Weber Rescue Uk Ltd,OPERATIONS EQUIPMENT,40005,Operational Equ Pch,Revenue,
10/06/2019,SI-10093-2019,805.83,0,Bauer Kompressoren UK Ltd,OPERATIONS EQUIPMENT,40005,Operational Equ Pch,Revenue,
10/06/2019,SI-10092-2019,1510,0,Bauer Kompressoren UK Ltd,OPERATIONS EQUIPMENT,40005,Operational Equ Pch,Revenue,
10/06/2019,SI-10324-2019,8100,0,Bauer Kompressoren UK Ltd,OPERATIONS EQUIPMENT,40005,Operational Equ Pch,Revenue,
10/06/2019,SI-10322-2019,7453.11,0,Bauer Kompressoren UK Ltd,OPERATIONS EQUIPMENT,40005,Operational Equ Pch,Revenue,
10/06/2019,01624,500,0,Dk Brown Associates,Mirfield Fire,42511,Consultancy Fees,Revenue,
10/06/2019,655634370000001,1457.91,0,Yorkshire Water,MOORTOWN,21014,General Rep & Maint,Revenue,
10/06/2019,129993,5177.2,0,Keela International Ltd,COPRORATE MANAGEMENT AND SUPPORT,59164,Equipment,Capital,
10/06/2019,23356,6299,0,Mitton Mechanical Services Ltd,COPRORATE MANAGEMENT AND SUPPORT,59052,Cont-External,Capital,
10/06/2019,1681/1,1650,0,2H Architecture Limited,COPRORATE MANAGEMENT AND SUPPORT,59058,Fee-External,Capital,
10/06/2019,9131,5099.6,0,Wharfedale Construction Co Ltd,COPRORATE MANAGEMENT AND SUPPORT,59052,Cont-External,Capital,
10/06/2019,SI202460,6376.92,0,Dale Power Solutions Ltd,FLEET MAINTENANCE,21013,Electrical Reps (Fr),Revenue,
10/06/2019,CDP.JL.18803.012,1134,0,Carter Towler Ltd,COPRORATE MANAGEMENT AND SUPPORT,59058,Fee-External,Capital,
10/06/2019,1832164403,693.34,0,Karcher (UK) Ltd,FLEET MAINTENANCE,30005,Workshop Equipment,Revenue,
10/06/2019,INV79202,8568,0,Skyguard Ltd,Fire Safety Prev,43024,Pagers,Revenue,
10/06/2019,2481097,3141.46,0,Bayford Oil,KEIGHLEY,30200,Vehicle Fuel,Revenue,
10/06/2019,OP/I041662,5036.37,0,Angloco Ltd,FLEET MANAGEMENT,30004,Rep-Ext Contractors,Revenue,
10/06/2019,SINV063739,1170,0,Woodway Engineering Ltd,FLEET MANAGEMENT,34002,Vhcle Leas Misc Exp,Revenue,
11/06/2019,0940000048-078D,1293.56,0,Airwave Solutions Ltd,Information Technlgy,43026,Radio Licensing,Revenue,
11/06/2019,IN1191200028555,16062.86,0,GTT Communications,Various,43018,Wan Rental,Revenue,
11/06/2019,1033,870,0,Systemes & Telecommunications Ltd,CONTROL,43015,Landlines Call Charges,Revenue,
11/06/2019,0028,625,0,Primal Kitchen Ltd,RECRUITS,40502,Food,Revenue,
11/06/2019,14744,520,0,Bradshaw Gass & Hope Llp,COPRORATE MANAGEMENT AND SUPPORT,59058,Fee-External,Capital,
11/06/2019,1070,672.5,0,Farm Adventure Ltd,TRAINING DELIVERY,19238,Ops Res Tng,Revenue,
11/06/2019,12901,1795,0,West Yorkshire Windscreens Ltd,FLEET MAINTENANCE,30001,Dir Cost-Spare Parts,Revenue,
11/06/2019,2445044,4164.16,0,Bayford Oil,ILLINGWORTH,30200,Vehicle Fuel,Revenue,
11/06/2019,52402701,660,0,Volvo Group Uk Ltd,Information Technlgy,43103,ICT Maintenance & Support,Revenue,
12/06/2019,2091,560,0,Hall Lane Recyclers Ltd,YOUNG FIREFIGHTERS,40025,Scrap Cars Purch,Revenue,
12/06/2019,756626,1300,0,G.D.B Manufacturing,Fire Safety Prev,41500,Clothing,Revenue,
12/06/2019,13958597,706.11,0,Corona Energy,Ossett New,25001,Energy-Gas,Revenue,
12/06/2019,756624,1200,0,G.D.B Manufacturing,Fire Safety Prev,41500,Clothing,Revenue,
12/06/2019,SN3054196,714.87,0,Berendsen UK Ltd t/a Elis,Various,41900,Laundry,Revenue,
12/06/2019,935551395,597.4,0,Arco Group,FLEET MAINTENANCE,30002,Consumables-Veh Rep,Revenue,
12/06/2019,2100,560,0,Hall Lane Recyclers Ltd,Killingbeck,40025,Scrap Cars Purch,Revenue,
12/06/2019,130153,1242.5,0,Keela International Ltd,SUPPLIES SECTION,41500,Clothing,Revenue,
12/06/2019,495577G,793.77,0,Arena Group Limited,EMPLOYMENT SERVICES,42201,Photocopier Charges,Revenue,
12/06/2019,495570G,561.12,0,Arena Group Limited,FINANCE SECTION,42201,Photocopier Charges,Revenue,
13/06/2019,INV28597,661,0,Clan Tool & Plant Hire ltd,OPERATIONS EQUIPMENT,40005,Operational Equ Pch,Revenue,
13/06/2019,SLF/00001308,2415,0,Kirklees College,TRAINING DELIVERY,19235,Emp Svc Tng,Revenue,
13/06/2019,0000151700,724.17,0,Online Ergonomics,CORPORATE DIVERSITY,40100,Furniture,Revenue,
13/06/2019,1009646921,599.55,0,Hays Specialist Recruitment,FINANCE SECTION,15001,Admin - Basic Pay,Revenue,
13/06/2019,2393396,3113.4,0,Bayford Oil,South Kirkby,30200,Vehicle Fuel,Revenue,
13/06/2019,0000108562,980,0,BIP Solutions,TRAINING DELIVERY,19236,Finance Tng,Revenue,
13/06/2019,97811900027099,1376.25,0,Linde Material Handling,FLEET MAINTENANCE,34101,Operating Leases,Revenue,
14/06/2019,11,784,0,D.V Optical (Openshaw Opticians),Health & Safety,18301,Specialists Fees,Revenue,
14/06/2019,1130510,7500,0,Fireangel Safety Technology Ltd,COPRORATE MANAGEMENT AND SUPPORT,59164,Equipment,Capital,
14/06/2019,655648510000008,683.21,0,Yorkshire Water,COPRORATE MANAGEMENT AND SUPPORT,59164,Equipment,Capital,
14/06/2019,655648440000005,1457.91,0,Yorkshire Water,COPRORATE MANAGEMENT AND SUPPORT,59164,Equipment,Capital,
14/06/2019,655648520000006,619.21,0,Yorkshire Water,COPRORATE MANAGEMENT AND SUPPORT,59164,Equipment,Capital,
14/06/2019,655648460000001,1457.91,0,Yorkshire Water,COPRORATE MANAGEMENT AND SUPPORT,59164,Equipment,Capital,
14/06/2019,655648530000004,696.57,0,Yorkshire Water,COPRORATE MANAGEMENT AND SUPPORT,59164,Equipment,Capital,
14/06/2019,655648410000000,1427.11,0,Yorkshire Water,COPRORATE MANAGEMENT AND SUPPORT,59164,Equipment,Capital,
14/06/2019,655648420000009,1540.11,0,Yorkshire Water,COPRORATE MANAGEMENT AND SUPPORT,59164,Equipment,Capital,
14/06/2019,655648430000007,1484.11,0,Yorkshire Water,COPRORATE MANAGEMENT AND SUPPORT,59164,Equipment,Capital,
14/06/2019,65564847000000X,868.83,0,Yorkshire Water,COPRORATE MANAGEMENT AND SUPPORT,59164,Equipment,Capital,
14/06/2019,655648480000008,887.58,0,Yorkshire Water,COPRORATE MANAGEMENT AND SUPPORT,59164,Equipment,Capital,
14/06/2019,655648490000006,667.21,0,Yorkshire Water,COPRORATE MANAGEMENT AND SUPPORT,59164,Equipment,Capital,
14/06/2019,14743,2228,0,Bradshaw Gass & Hope Llp,COPRORATE MANAGEMENT AND SUPPORT,59058,Fee-External,Capital,
14/06/2019,65564850000000X,619.21,0,Yorkshire Water,COPRORATE MANAGEMENT AND SUPPORT,59164,Equipment,Capital,
14/06/2019,655648540000002,694.57,0,Yorkshire Water,COPRORATE MANAGEMENT AND SUPPORT,59164,Equipment,Capital,
14/06/2019,655648550000000,696.57,0,Yorkshire Water,COPRORATE MANAGEMENT AND SUPPORT,59164,Equipment,Capital,
14/06/2019,655648560000009,585.11,0,Yorkshire Water,COPRORATE MANAGEMENT AND SUPPORT,59164,Equipment,Capital,
17/06/2019,1521101-01,501.53,0,Crossroads Truck & Bus Ltd,FLEET MAINTENANCE,30001,Dir Cost-Spare Parts,Revenue,
17/06/2019,1521688-01,638.3,0,Crossroads Truck & Bus Ltd,FLEET MAINTENANCE,30001,Dir Cost-Spare Parts,Revenue,
17/06/2019,1521560-01,908.86,0,Crossroads Truck & Bus Ltd,FLEET MANAGEMENT,30006,Ins Claims Excess,Revenue,
17/06/2019,INV/21058,3000,0,DFP Services Limited,Various,20000,Ann Contract/Service,Revenue,
17/06/2019,INV-0000002330,1448,0,Event Equipment Hire,PROPERTY,40215,Annual Review,Revenue,
17/06/2019,027763,1123.76,0,BCS Electrics Ltd,BRADFORD,21014,General Rep & Maint,Revenue,
17/06/2019,2502995,3162.61,0,Bayford Oil,BRADFORD,30200,Vehicle Fuel,Revenue,
17/06/2019,2501579,3688.3,0,Bayford Oil,ODSAL,30200,Vehicle Fuel,Revenue,
17/06/2019,2501941,4214,0,Bayford Oil,Killingbeck,30200,Vehicle Fuel,Revenue,
17/06/2019,2522776,2609,0,Bayford Oil,LEEDS,30200,Vehicle Fuel,Revenue,
17/06/2019,177374,1440,0,Northumberland County Council,TRAINING DELIVERY,19238,Ops Res Tng,Revenue,
17/06/2019,72,3200,0,Michael Wood Management Consultancy,FINANCE SECTION,42511,Consultancy Fees,Revenue,
17/06/2019,2094,2800,0,Hall Lane Recyclers Ltd,TRAINING DELIVERY,40025,Scrap Cars Purch,Revenue,
18/06/2019,129643,5260.85,0,Keela International Ltd,COPRORATE MANAGEMENT AND SUPPORT,59164,Equipment,Capital,
18/06/2019,E2011255264,3861.46,0,Allstar Business Solutions Ltd,MORLEY,30200,Vehicle Fuel,Revenue,
18/06/2019,0000261753,715.5,0,M I Supplies Ltd,SUPPLIES SECTION,28501,Cleaning Consumables,Revenue,
18/06/2019,2504489,2779.5,0,Bayford Oil,HUDDERSFIELD,25002,Energy-Fuel Oil,Revenue,
18/06/2019,LGWCHPY7,604.8,0,Npower Ltd,COOKRIDGE,25000,Energy-Electric,Revenue,
18/06/2019,LGWCHPY5,1269.89,0,Npower Ltd,HALIFAX,25000,Energy-Electric,Revenue,
18/06/2019,LGWCHPY4,659.6,0,Npower Ltd,PROPERTY,25000,Energy-Electric,Revenue,
18/06/2019,13659,4568.4,0,Warwick Int.  Computing Sys,Health & Safety,44600,Subscriptions,Revenue,
18/06/2019,0002,575,0,PK Prep Ltd,RECRUITS,40502,Food,Revenue,
19/06/2019,6808,627.19,0,Wilson Ohs Ltd,Health & Safety,40026,First Aid Equ Pch,Revenue,
19/06/2019,UK10/032019/2252,35352.97,0,Vodafone Connect,Emergency Serv Comms programme - WY,43042,Direct Network Service Provider,Revenue,
19/06/2019,UK10/042019/5074,1604,0,Vodafone Connect,Emergency Serv Comms programme - WY,43042,Direct Network Service Provider,Revenue,
19/06/2019,UK10/052019/3286,1604,0,Vodafone Connect,Emergency Serv Comms programme - WY,43042,Direct Network Service Provider,Revenue,
19/06/2019,I002294,3520,0,H&H Agency Ltd,PUBLIC INFORMATION,40221,Publty/Promtn/Media,Revenue,
19/06/2019,1009708765,599.55,0,Hays Specialist Recruitment,FINANCE SECTION,15001,Admin - Basic Pay,Revenue,
19/06/2019,16495,1402.8,0,Heavy Woollen Textile Co Ltd,SUPPLIES SECTION,40007,Domestic Equ Purch,Revenue,
20/06/2019,4851,790,0,Allansound Communications,TRAINING DELIVERY,21013,Electrical Reps (Fr),Revenue,
20/06/2019,0001,575,0,PK Prep Ltd,RECRUITS,40502,Food,Revenue,
20/06/2019,3052910494,1602.93,0,British Oxygen Co Ltd,OPERATIONS EQUIPMENT,40005,Operational Equ Pch,Revenue,
20/06/2019,1019428,3400,0,Bytes Security Partnerships Lt,Information Technlgy,42511,Consultancy Fees,Revenue,
20/06/2019,"13,789",755.82,0,Bella Refreshments Ltd,SUPPLIES SECTION,40514,Emergency Food,Revenue,
20/06/2019,11099,2250,0,Impeller Assurance & Resilience Ltd,TRAINING DELIVERY,19241,Service Supp Tng,Revenue,
20/06/2019,935583176,1926.98,0,Arco Group,COPRORATE MANAGEMENT AND SUPPORT,59164,Equipment,Capital,
20/06/2019,MC/205,2750,0,Montgomery & Coupers Ltd,PROPERTY,20001,Water Management Legionella,Revenue,
20/06/2019,MC/207,795,0,Montgomery & Coupers Ltd,PROPERTY,42511,Consultancy Fees,Revenue,
20/06/2019,4520,525,0,Concept Print,SUPPLIES SECTION,40205,Book/Publications,Revenue,
20/06/2019,71605,4706.5,0,Delta Fire Ltd,OPERATIONS EQUIPMENT,40005,Operational Equ Pch,Revenue,
20/06/2019,45215,1800,0,Leeds Pallet Co.Ltd.,TRAINING DELIVERY,40006,Training Equ Purch,Revenue,
20/06/2019,7383,1455,0,Right 2 Write Ltd,CORPORATE DIVERSITY,43106,ICT Consumables,Revenue,
20/06/2019,6372,529,0,Star Covers (Leeds) Ltd,FLEET MAINTENANCE,30001,Dir Cost-Spare Parts,Revenue,
20/06/2019,SI-130324,978.05,0,Medtree,OPERATIONS EQUIPMENT,40005,Operational Equ Pch,Revenue,
20/06/2019,94942,2037,0,Wm Sugden & Sons Ltd,SUPPLIES SECTION,41500,Clothing,Revenue,
20/06/2019,91509203,6269.03,0,Vodafone (Mobiles),Information Technlgy,43017,Corporate Mobile Phone,Revenue,
21/06/2019,1906030003,2622,0,Ledston Education Centre,TRAINING DELIVERY,19238,Ops Res Tng,Revenue,
21/06/2019,4666,2430,0,The Outreach Organisation Ltd,TRAINING DELIVERY,19241,Service Supp Tng,Revenue,
21/06/2019,LGWCHNQ9,717.02,0,Npower Ltd,ROTHWELL,25000,Energy-Electric,Revenue,
21/06/2019,21/WINDSOR/19,745.83,0,Alama 2006,Health & Safety,43501,Conference Expenses,Revenue,
21/06/2019,0000246686,569.16,0,SYNLAB Laboratory Services Ltd,Health & Safety,18301,Specialists Fees,Revenue,
21/06/2019,LGWCHNQ2,783.25,0,Npower Ltd,Dewsbury New,25000,Energy-Electric,Revenue,
21/06/2019,LGWCHNRB,1157.43,0,Npower Ltd,LEEDS,25000,Energy-Electric,Revenue,
21/06/2019,LGWCHNQZ,849.87,0,Npower Ltd,Rastrick,25000,Energy-Electric,Revenue,
21/06/2019,LGWCHNQY,8277.76,0,Npower Ltd,PROPERTY,25000,Energy-Electric,Revenue,
21/06/2019,655659320000003,694.57,0,Yorkshire Water,COPRORATE MANAGEMENT AND SUPPORT,59164,Equipment,Capital,
21/06/2019,655659310000005,978.97,0,Yorkshire Water,COPRORATE MANAGEMENT AND SUPPORT,59164,Equipment,Capital,
21/06/2019,655659100000002,978.97,0,Yorkshire Water,COPRORATE MANAGEMENT AND SUPPORT,59164,Equipment,Capital,
21/06/2019,655659110000000,887.58,0,Yorkshire Water,COPRORATE MANAGEMENT AND SUPPORT,59164,Equipment,Capital,
21/06/2019,108617,1942.46,0,Redfern Travel Ltd,FINANCE SECTION,35000,Public Transport,Revenue,
24/06/2019,MSCR448810,-1245.6,-83.15,Lex Autolease,Fire Investigation,34001,Vehicle Leasing,Revenue,
24/06/2019,LGWCHNQ7,829.9,0,Npower Ltd,PONTEFRACT,25000,Energy-Electric,Revenue,
24/06/2019,LGWCHNQ6,1833.15,0,Npower Ltd,BRADFORD,25000,Energy-Electric,Revenue,
24/06/2019,LGWCHNQ5,4376.27,0,Npower Ltd,NEW CONTROL PROJECT,25000,Energy-Electric,Revenue,
24/06/2019,LGWCHNQ4,632.81,0,Npower Ltd,Shipley New,25000,Energy-Electric,Revenue,
24/06/2019,LGWCHNQ3,1043.89,0,Npower Ltd,Killingbeck,25000,Energy-Electric,Revenue,
24/06/2019,IRIN657763,20080.44,0,Lex Autolease,FLEET MANAGEMENT,34001,Vehicle Leasing,Revenue,
25/06/2019,5026763,23000,0,GVA Grimley,PROPERTY,42511,Consultancy Fees,Revenue,
25/06/2019,5026684,12900,0,GVA Grimley,PROPERTY,42511,Consultancy Fees,Revenue,
25/06/2019,688322,950,0,Access Uk Ltd,COPRORATE MANAGEMENT AND SUPPORT,59166,Computer Costs,Capital,
25/06/2019,689292,950,0,Access Uk Ltd,COPRORATE MANAGEMENT AND SUPPORT,59166,Computer Costs,Capital,
25/06/2019,73,2800,0,Michael Wood Management Consultancy,FINANCE SECTION,42511,Consultancy Fees,Revenue,
25/06/2019,70011196,2280,0,Leeds City College,TRAINING DELIVERY,19203,Non Uniformed,Revenue,
25/06/2019,70011195,1520,0,Leeds City College,TRAINING DELIVERY,19203,Non Uniformed,Revenue,
25/06/2019,70011193,1520,0,Leeds City College,TRAINING DELIVERY,19203,Non Uniformed,Revenue,
25/06/2019,70011192,1900,0,Leeds City College,TRAINING DELIVERY,19203,Non Uniformed,Revenue,
25/06/2019,49009,596.5,0,Concept Engineerings Ltd,TRAINING DELIVERY,40006,Training Equ Purch,Revenue,
25/06/2019,4025286,1769,0,Pure AV,Information Technlgy,43103,ICT Maintenance & Support,Revenue,
25/06/2019,142381,3440,0,Physio Med Ltd,Health & Safety,18301,Specialists Fees,Revenue,
25/06/2019,0000146289,4095,0,Goliath Footwear Ltd,SUPPLIES SECTION,41500,Clothing,Revenue,
25/06/2019,SI879804,676,0,Burmatex Plc,PROPERTY,21014,General Rep & Maint,Revenue,
25/06/2019,0000146288,2331.21,0,Goliath Footwear Ltd,SUPPLIES SECTION,41500,Clothing,Revenue,
25/06/2019,3164,639.6,0,Karl Austerfield Roofing Ltd,HUDDERSFIELD,21014,General Rep & Maint,Revenue,
25/06/2019,3163,531.36,0,Karl Austerfield Roofing Ltd,MORLEY,21014,General Rep & Maint,Revenue,
25/06/2019,SMAI010612,1439.26,0,Babcock Critical Serv Ltd (Ma),OPERATIONS EQUIPMENT,40005,Operational Equ Pch,Revenue,
26/06/2019,INV/4991,10646.57,0,Industrial Door Solutions Limited,Various,20000,Ann Contract/Service,Revenue,
26/06/2019,2529591,2087.2,0,Bayford Oil,RAWDON,30200,Vehicle Fuel,Revenue,
26/06/2019,8604834661,2618.05,0,Kirklees Council,PROPERTY,20000,Ann Contract/Service,Revenue,
26/06/2019,655648570000007,585.11,0,Yorkshire Water,COPRORATE MANAGEMENT AND SUPPORT,59164,Equipment,Capital,
26/06/2019,655674310000004,958.29,0,Yorkshire Water,COPRORATE MANAGEMENT AND SUPPORT,59164,Equipment,Capital,
26/06/2019,655674280000004,1427.11,0,Yorkshire Water,COPRORATE MANAGEMENT AND SUPPORT,59164,Equipment,Capital,
26/06/2019,655674300000006,1427.11,0,Yorkshire Water,COPRORATE MANAGEMENT AND SUPPORT,59164,Equipment,Capital,
26/06/2019,MC/208,1500,0,Montgomery & Coupers Ltd,PROPERTY,42511,Consultancy Fees,Revenue,
26/06/2019,655674340000009,632.57,0,Yorkshire Water,COPRORATE MANAGEMENT AND SUPPORT,59164,Equipment,Capital,
26/06/2019,655674330000000,632.57,0,Yorkshire Water,COPRORATE MANAGEMENT AND SUPPORT,59164,Equipment,Capital,
26/06/2019,655674320000002,632.57,0,Yorkshire Water,COPRORATE MANAGEMENT AND SUPPORT,59164,Equipment,Capital,
28/06/2019,RACR303897,-501.14,0,Lex Autolease,FLEET MANAGEMENT,34001,Vehicle Leasing,Revenue,
28/06/2019,MLCR085029,-3002.16,0,Lex Autolease,FLEET MANAGEMENT,34001,Vehicle Leasing,Revenue,
28/06/2019,MLCR085030,-3002.16,0,Lex Autolease,FLEET MANAGEMENT,34001,Vehicle Leasing,Revenue,
28/06/2019,MLCR085031,-1757.35,0,Lex Autolease,FLEET MANAGEMENT,34001,Vehicle Leasing,Revenue,
28/06/2019,691674,950,0,Access Uk Ltd,COPRORATE MANAGEMENT AND SUPPORT,59166,Computer Costs,Capital,
28/06/2019,65549944000000X,930.83,0,Yorkshire Water,COPRORATE MANAGEMENT AND SUPPORT,59164,Equipment,Capital,
28/06/2019,INV-1787,2104,0,Robert Whetham Associates,Killingbeck,42511,Consultancy Fees,Revenue,
28/06/2019,027803,8967.31,0,BCS Electrics Ltd,COPRORATE MANAGEMENT AND SUPPORT,59052,Cont-External,Capital,
28/06/2019,9140,1522.17,0,Wharfedale Construction Co Ltd,COPRORATE MANAGEMENT AND SUPPORT,59052,Cont-External,Capital,
28/06/2019,MRI8706704,12695.16,"1,151.42",Lex Autolease,Various,34001,Vehicle Leasing,Revenue,
28/06/2019,9139,2636.52,0,Wharfedale Construction Co Ltd,COPRORATE MANAGEMENT AND SUPPORT,59052,Cont-External,Capital,
28/06/2019,IRIN658396,4245.24,371.51,Lex Autolease,Wakefield Dist Com,34001,Vehicle Leasing,Revenue,
28/06/2019,42497,1020,0,Stoneywood Limited,FLEET MANAGEMENT,30104,Vehicle Recovery,Revenue,
